{"text_format":"1","workbook":"xlsx","n_sheets":7,"sheets":["注意事項","避難方法","Step1","Step2","Step3","ワークシート","印刷（マイタイムライン）"],"not_rendered":{"charts":0,"images":15,"macros":1,"external_links":0,"defined_names":6,"comments":0,"pivot_tables":0},"unopened":[],"bounds":{"document_bytes":16777216,"sheet_cells":100000,"rows_first":2000,"rows_last":500,"rows_between":2000,"halvings":0,"cell_chars":16384,"cell_head_chars":4096},"cells_cut":0,"cells_raw":0,"read":"whole","date_system":"1900"}

{"sheet":"注意事項","index":0,"n_rows":27,"n_cols":3,"rows_kept":27,"cut":false,"hidden":false,"merged":[]}
[null,"※注意事項※"]
[null,null,"各シートや入力項目以外の削除は絶対に行わないようにしてください！"]
[null,null,"マイ・タイムラインが作成できなくなります。ご注意ください。"]
[]
[null,null,"●初めてこのファイルを開いたときは…"]
[]
[]
[]
[]
[]
[]
[]
[]
[]
[]
[]
[]
[]
[]
[null,null,"●上図のではなく、下図が表示されたときは…"]
[]
[]
[]
[]
[]
[null,null,"注意事項をご確認いただきましたら"]
[null,null,"避難方法　→　Step1　→　Step2　→　Step3　の順にシートをご入力ください。"]

{"sheet":"避難方法","index":1,"n_rows":20,"n_cols":25,"rows_kept":20,"cut":false,"hidden":false,"merged":[[10,2,12,6],[15,2,17,6],[1,0,1,1]]}
[null,null,null,null,null,null,null,null,null,null,null,null,null,null,null,null,null,null,null,null,null,null,1]
["避難方法",null,"右側の「※ご参考※」を参考に、避難のパターンを選択し、避難先、連絡先を入力してください",null,null,null,null,null,null,null,null,"※ご参考※",null,null,null,null,null,null,null,null,null,null,2,"A","垂直避難"]
[null,null,"入力後は、Ｓｔｅｐ１のシートに進んでください。",null,null,null,null,null,null,null,null,"以下、パターン図をご確認いただき、ご自身が該当するものを確認してください。",null,null,null,null,null,null,null,null,null,null,3,"B","水平避難（早期）"]
[null,null,null,null,null,null,null,null,null,null,null,null,null,null,null,null,null,null,null,null,null,null,4,"C","水平避難"]
[]
[null,"●避難パターン"]
[]
[null,null,"パターン",null,null,{"$f":"IFERROR(VLOOKUP(D8,X:Y,2,FALSE),\"\")","v":""}]
[]
[null,"●避難先"]
[]
[]
[null,null,null,null,null,null,null,null,null,null,null,"※避難先・連絡先の入力について※"]
[null,null,null,null,null,null,null,null,null,null,null,"避難先・連絡先がそれぞれ複数ある時は、お手数をおかけいたしますが、"]
[null,"●連絡先","※電話番号を入力してください。"]
[null,null,null,null,null,null,null,null,null,null,null,null,"＋",null,"を同時に押して改行の入力をお願いいたします。"]
[]
[]
[null,null,null,null,null,null,null,null,null,null,null,"【例】"]
[null,null,null,null,null,null,null,null,null,null,null,"お爺さん：福祉避難所　→　alt+Enter　→　残り家族：●●叔父さん宅"]

{"sheet":"Step1","index":2,"n_rows":37,"n_cols":20,"rows_kept":37,"cut":false,"hidden":false,"merged":[]}
[null,null,null,null,null,null,null,null,null,null,null,null,null,null,null,null,1,1,false,1]
["Step1.","下記の行動のうち、必要と考えられる項目を選んでください。（複数選択可）",null,null,null,null,null,null,null,null,null,null,null,null,null,null,1,2,false,2]
[null,"入力後は、Ｓｔｅｐ２のシートに進んでください。",null,null,null,null,null,null,null,null,null,null,null,null,null,null,1,3,false,3]
[null,null,null,null,null,null,null,null,null,null,null,null,null,null,null,null,1,4,false,4]
[null,"１．日頃からの避難に向けた備え",null,null,null,null,null,null,null,null,null,null,null,null,null,null,1,5,false,5]
[null,null," ３日間の自宅避難の備え",null,null,null,null,null,null,null,null,null,null,null,null,null,2,1,false,6]
[null,null," 防災グッズや感染症対策などの備え",null,null,null,null,null,null,null,null,null,null,null,null,null,2,2,false,7]
[null,null," 避難方法や避難先などの決定",null,null,null,null,null,null,null,null,null,null,null,null,null,2,3,false,8]
[null,null," 要配慮者の避難の備え",null,null,null,null,null,null,null,null,null,null,null,null,null,3,1,false,9]
[null,null,"ペット避難の備え",null,null,null,null,null,null,null,null,null,null,null,null,null,3,2,false,10]
[null,null,null,null,null,null,null,null,null,null,null,null,null,null,null,null,4,1,false,11]
[null,"２．避難に向けた様々な情報の収集",null,null,null,null,null,null,null,null,null,null,null,null,null,null,4,2,false,12]
[null,null," 台風や降雨に関する気象情報の収集",null,null,null,null,null,null,null,null,null,null,null,null,null,4,3,false,13]
[null,null," 避難に役立つ防災情報の収集",null,null,null,null,null,null,null,null,null,null,null,null,null,4,4,false,14]
[null,null," 交通情報、被害情報の収集",null,null,null,null,null,null,null,null,null,null,null,null,null,4,5,false,15]
[null,null,null,null,null,null,null,null,null,null,null,null,null,null,null,null,4,6,false,16]
[null,"３．家族と親類等への連絡",null,null,null,null,null,null,null,null,null,null,null,null,null,null,4,7,false,17]
[null,null," 家族などへの連絡",null,null,null,null,null,null,null,null,null,null,null,null,null,4,8,false,18]
[null,null," 親類・避難先への連絡",null,null,null,null,null,null,null,null,null,null,null,null,null,5,1,false,19]
[null,null,null,null,null,null,null,null,null,null,null,null,null,null,null,null,5,2,false,20]
[null,"４．避難に向けた準備",null,null,null,null,null,null,null,null,null,null,null,null,null,null,6,1,false,21]
[null,null," 自宅の風水害対策・被害軽減対策",null,null,null,null,null,null,null,null,null,null,null,null,null,6,2,false,22]
[null,null," 大切なものの安全な階への移動"]
[null,null," 飲食物や生活用水の確保、停電対策"]
[null,null," 持ち出し品の詰め込み"]
[null,null," 火の元確認、戸締り"]
[null,null," 自家用車やバイクの避難"]
[null,null," ペット対応"]
[null,null," 携帯電話の充電など"]
[]
[null,"５．地域での助け合い"]
[null,null," 地域内で声かけによる避難"]
[null,null," 避難時の要配慮者と支援者の関係把握"]
[]
[null,"６．避難開始"]
[null,null," 要配慮者の避難開始"]
[null,null," 健常者の避難開始"]

{"sheet":"Step2","index":3,"n_rows":90,"n_cols":39,"rows_kept":90,"cut":false,"hidden":false,"merged":[]}
[null,null,null,null,null,null,null,null,null,null,null,null,null,1,"●5～3日前",1,"１．日頃からの避難に向けた備え",null,null,null,"順番","日程","大項目","小項目",null,"順位","日程","大項目","小項目",null,null,null,null,"日程",null,"大項目",null,"小項目"]
[null,null,null,null,null,null,null,null,null,null,null,null,null,2,"●2日前",2,"２．避難に向けた様々な情報の収集",null,null,null,{"$f":"IFERROR(RANK($Z2,$Z$2:$Z$89,1),\"\")","v":""},1,1,1,false,{"$f":"IF($Y2<>FALSE,VALUE($V2&$W2&$X2),\"\")","v":""},{"$f":"IF($Y2<>FALSE,VLOOKUP($V2,$N:$O,2,FALSE),\"\")","v":""},{"$f":"IF($Y2<>FALSE,VLOOKUP($W2,$P:$Q,2,FALSE),\"\")","v":""},{"$f":"IF($Y2<>FALSE,$C9,\"\")","v":""},null,null,null,1,{"$f":"IFERROR(VLOOKUP($AG2,$U:$V,2,FALSE),\"\")","v":""},{"$f":"IFERROR(VLOOKUP($AG2,$U:$AC,7,FALSE),\"\")","v":""},{"$f":"IFERROR(VLOOKUP($AG2,$U:$W,3,FALSE),\"\")","v":""},{"$f":"IFERROR(VLOOKUP($AG2,$U:$AC,8,FALSE),\"\")","v":""},{"$f":"IFERROR(VLOOKUP($AG2,$U:$X,4,FALSE),\"\")","v":""},{"$f":"IFERROR(VLOOKUP($AG2,$U:$AC,9,FALSE),\"\")","v":""}]
[null,null,null,null,null,null,null,null,null,null,null,null,null,3,"●1日前",3,"３．家族と親類等への連絡",null,null,null,{"$f":"IFERROR(RANK($Z3,$Z$2:$Z$89,1),\"\")","v":""},1,1,2,false,{"$f":"IF($Y3<>FALSE,VALUE($V3&$W3&$X3),\"\")","v":""},"","",{"$f":"IF($Y3<>FALSE,$C10,\"\")","v":""},null,null,null,2,"","","","","",""]
[null,null,null,null,null,null,null,null,null,null,null,null,null,4,"●当日",4,"４．避難に向けた準備",null,null,null,"",1,1,3,false,{"$f":"IF($Y4<>FALSE,VALUE($V4&$W4&$X4),\"\")","v":""},"","",{"$f":"IF($Y4<>FALSE,$C11,\"\")","v":""},null,null,null,3,"","","","","",""]
["Step2.","Step1で選んだ以下の行動について、右列から実施するタイミングにチェックを入れてください。（複数選択可）",null,null,null,null,null,null,null,null,null,null,null,null,null,5,"５．地域での助け合い",null,null,null,"",1,1,4,false,"","","",{"$f":"IF($Y5<>FALSE,$C12,\"\")","v":""},null,null,null,4,"","","","","",""]
[null,"入力後は、Ｓｔｅｐ３のシートに進んでください。",null,null,null,null,null,null,null,null,null,null,null,null,null,6,"６．避難開始",null,null,null,"",1,1,5,false,"","","",{"$f":"IF($Y6<>FALSE,$C13,\"\")","v":""},null,null,null,5,"","","","","",""]
[null,null,null,null,null,null,null,null,null,null,null,null,null,null,null,null,null,null,null,null,"",1,2,1,false,"","","",{"$f":"IF($Y7<>FALSE,$C16,\"\")","v":""},null,null,null,6,"","","","","",""]
[null,"１．日頃からの避難に向けた備え",null,null,null,null,"５~３日前","２日前","１日前","当日",null,null,null,null,null,null,null,null,null,null,"",1,2,2,false,"","","",{"$f":"IF($Y8<>FALSE,$C17,\"\")","v":""},null,null,null,7,"","","","","",""]
[null,"■"," ３日間の自宅避難の備え",null,null,null,null,null,null,null,null,null,null,null,null,null,null,null,null,null,"",1,2,3,false,"","","",{"$f":"IF($Y9<>FALSE,$C18,\"\")","v":""},null,null,null,8,"","","","","",""]
[null,"■"," 防災グッズや感染症対策などの備え",null,null,null,null,null,null,null,null,null,null,null,null,null,null,null,null,null,"",1,3,1,false,"","","",{"$f":"IF($Y10<>FALSE,$C21,\"\")","v":""},null,null,null,9,"","","","","",""]
[null,"■"," 避難方法や避難先などの決定",null,null,null,null,null,null,null,null,null,null,null,null,null,null,null,null,null,"",1,3,2,false,"","","",{"$f":"IF($Y11<>FALSE,$C22,\"\")","v":""},null,null,null,10,"","","","","",""]
[null,"■"," 要配慮者の避難の備え",null,null,null,null,null,null,null,null,null,null,null,null,null,null,null,null,null,"",1,4,1,false,"","","",{"$f":"IF($Y12<>FALSE,$C25,\"\")","v":""},null,null,null,11,"","","","","",""]
[null,"■","ペット避難の備え",null,null,null,null,null,null,null,null,null,null,null,null,null,null,null,null,null,"",1,4,2,false,"","","","",null,null,null,12,"","","","","",""]
[null,null,null,null,null,null,null,null,null,null,null,null,null,null,null,null,null,null,null,null,"",1,4,3,false,"","","","",null,null,null,13,"","","","","",""]
[null,"２．避難に向けた様々な情報の収集",null,null,null,null,"５~３日前","２日前","１日前","当日",null,null,null,null,null,null,null,null,null,null,"",1,4,4,false,"","","","",null,null,null,14,"","","","","",""]
[null,"■"," 台風や降雨に関する気象情報の収集",null,null,null,null,null,null,null,null,null,null,null,null,null,null,null,null,null,"",1,4,5,false,"","","","",null,null,null,15,"","","","","",""]
[null,"■"," 避難に役立つ防災情報の収集",null,null,null,null,null,null,null,null,null,null,null,null,null,null,null,null,null,"",1,4,6,false,"","","","",null,null,null,16,"","","","","",""]
[null,"■"," 交通情報、被害情報の収集",null,null,null,null,null,null,null,null,null,null,null,null,null,null,null,null,null,"",1,4,7,false,"","","","",null,null,null,17,"","","","","",""]
[null,null,null,null,null,null,null,null,null,null,null,null,null,null,null,null,null,null,null,null,"",1,4,8,false,"","","","",null,null,null,18,"","","","","",""]
[null,"３．家族と親類等への連絡",null,null,null,null,"５~３日前","２日前","１日前","当日",null,null,null,null,null,null,null,null,null,null,"",1,5,1,false,"","","",{"$f":"IF($Y20<>FALSE,$C35,\"\")","v":""},null,null,null,19,"","","","","",""]
[null,"■"," 家族などへの連絡",null,null,null,null,null,null,null,null,null,null,null,null,null,null,null,null,null,"",1,5,2,false,"","","",{"$f":"IF($Y21<>FALSE,$C36,\"\")","v":""},null,null,null,20,"","","","","",""]
[null,"■"," 親類・避難先への連絡",null,null,null,null,null,null,null,null,null,null,null,null,null,null,null,null,null,"",1,6,1,false,"","","",{"$f":"IF($Y22<>FALSE,$C39,\"\")","v":""},null,null,null,21,"","","","","",""]
[null,null,null,null,null,null,null,null,null,null,null,null,null,null,null,null,null,null,null,null,"",1,6,2,false,"","","",{"$f":"IF($Y23<>FALSE,$C40,\"\")","v":""},null,null,null,22,"","","","","",""]
[null,"４．避難に向けた準備",null,null,null,null,"５~３日前","２日前","１日前","当日",null,null,null,null,null,null,null,null,null,null,"",2,1,1,false,"","","",{"$f":"IF($Y24<>FALSE,$C9,\"\")","v":""},null,null,null,23,"","","","","",""]
[null,"■"," 自宅の風水害対策・被害軽減対策",null,null,null,null,null,null,null,null,null,null,null,null,null,null,null,null,null,"",2,1,2,false,"","","",{"$f":"IF($Y25<>FALSE,$C10,\"\")","v":""},null,null,null,24,"","","","","",""]
[null,"■"," 大切なものの安全な階への移動",null,null,null,null,null,null,null,null,null,null,null,null,null,null,null,null,null,"",2,1,3,false,"","","",{"$f":"IF($Y26<>FALSE,$C11,\"\")","v":""},null,null,null,25,"","","","","",""]
[null,"■"," 飲食物や生活用水の確保、停電対策",null,null,null,null,null,null,null,null,null,null,null,null,null,null,null,null,null,"",2,1,4,false,"","","",{"$f":"IF($Y27<>FALSE,$C12,\"\")","v":""},null,null,null,26,"","","","","",""]
[null,"■"," 持ち出し品の詰め込み",null,null,null,null,null,null,null,null,null,null,null,null,null,null,null,null,null,"",2,1,5,false,"","","",{"$f":"IF($Y28<>FALSE,$C13,\"\")","v":""},null,null,null,27,"","","","","",""]
[null,"■"," 火の元確認、戸締り",null,null,null,null,null,null,null,null,null,null,null,null,null,null,null,null,null,"",2,2,1,false,"","","",{"$f":"IF($Y29<>FALSE,$C16,\"\")","v":""},null,null,null,28,"","","","","",""]
[null,"■"," 自家用車やバイクの避難",null,null,null,null,null,null,null,null,null,null,null,null,null,null,null,null,null,"",2,2,2,false,"","","",{"$f":"IF($Y30<>FALSE,$C17,\"\")","v":""},null,null,null,29,"","","","","",""]
[null,"■"," ペット対応",null,null,null,null,null,null,null,null,null,null,null,null,null,null,null,null,null,"",2,2,3,false,"","","",{"$f":"IF($Y31<>FALSE,$C18,\"\")","v":""},null,null,null,30,"","","","","",""]
[null,"■"," 携帯電話の充電など",null,null,null,null,null,null,null,null,null,null,null,null,null,null,null,null,null,"",2,3,1,false,"","","",{"$f":"IF($Y32<>FALSE,$C21,\"\")","v":""},null,null,null,31,"","","","","",""]
[null,null,null,null,null,null,null,null,null,null,null,null,null,null,null,null,null,null,null,null,"",2,3,2,false,"","","",{"$f":"IF($Y33<>FALSE,$C22,\"\")","v":""},null,null,null,32,"","","","","",""]
[null,"５．地域での助け合い",null,null,null,null,"５~３日前","２日前","１日前","当日",null,null,null,null,null,null,null,null,null,null,"",2,4,1,false,"",{"$f":"IF($Y34<>FALSE,VLOOKUP($V34,$N:$O,2,FALSE),\"\")","v":""},{"$f":"IF($Y34<>FALSE,VLOOKUP($W34,$P:$Q,2,FALSE),\"\")","v":""},{"$f":"IF($Y34<>FALSE,$C25,\"\")","v":""},null,null,null,33,{"$f":"IFERROR(VLOOKUP($AG34,$U:$V,2,FALSE),\"\")","v":""},{"$f":"IFERROR(VLOOKUP($AG34,$U:$AC,7,FALSE),\"\")","v":""},{"$f":"IFERROR(VLOOKUP($AG34,$U:$W,3,FALSE),\"\")","v":""},{"$f":"IFERROR(VLOOKUP($AG34,$U:$AC,8,FALSE),\"\")","v":""},{"$f":"IFERROR(VLOOKUP($AG34,$U:$X,4,FALSE),\"\")","v":""},{"$f":"IFERROR(VLOOKUP($AG34,$U:$AC,9,FALSE),\"\")","v":""}]
[null,"■"," 地域内で声かけによる避難",null,null,null,null,null,null,null,null,null,null,null,null,null,null,null,null,null,"",2,4,2,false,"","","","",null,null,null,34,"","","","","",""]
[null,"■"," 避難時の要配慮者と支援者の関係把握",null,null,null,null,null,null,null,null,null,null,null,null,null,null,null,null,null,"",2,4,3,false,"","","","",null,null,null,35,"","","","","",""]
[null,null,null,null,null,null,null,null,null,null,null,null,null,null,null,null,null,null,null,null,"",2,4,4,false,"","","","",null,null,null,36,"","","","","",""]
[null,"６．避難開始",null,null,null,null,"５~３日前","２日前","１日前","当日",null,null,null,null,null,null,null,null,null,null,"",2,4,5,false,"","","","",null,null,null,37,"","","","","",""]
[null,"■"," 要配慮者の避難開始",null,null,null,null,null,null,null,null,null,null,null,null,null,null,null,null,null,"",2,4,6,false,"","","","",null,null,null,38,"","","","","",""]
[null,"■"," 健常者の避難開始",null,null,null,null,null,null,null,null,null,null,null,null,null,null,null,null,null,"",2,4,7,false,"","","","",null,null,null,39,"","","","","",""]
[null,null,null,null,null,null,null,null,null,null,null,null,null,null,null,null,null,null,null,null,"",2,4,8,false,"","","","",null,null,null,40,"","","","","",""]
[null,null,null,null,null,null,null,null,null,null,null,null,null,null,null,null,null,null,null,null,"",2,5,1,false,"","","",{"$f":"IF($Y42<>FALSE,$C35,\"\")","v":""},null,null,null,41,"","","","","",""]
[null,null,null,null,null,null,null,null,null,null,null,null,null,null,null,null,null,null,null,null,"",2,5,2,false,"","","",{"$f":"IF($Y43<>FALSE,$C36,\"\")","v":""},null,null,null,42,"","","","","",""]
[null,null,null,null,null,null,null,null,null,null,null,null,null,null,null,null,null,null,null,null,"",2,6,1,false,"","","",{"$f":"IF($Y44<>FALSE,$C39,\"\")","v":""},null,null,null,43,"","","","","",""]
[null,null,null,null,null,null,null,null,null,null,null,null,null,null,null,null,null,null,null,null,"",2,6,2,false,"","","",{"$f":"IF($Y45<>FALSE,$C40,\"\")","v":""},null,null,null,44,"","","","","",""]
[null,null,null,null,null,null,null,null,null,null,null,null,null,null,null,null,null,null,null,null,"",3,1,1,false,"","","",{"$f":"IF($Y46<>FALSE,$C9,\"\")","v":""},null,null,null,45,"","","","","",""]
[null,null,null,null,null,null,null,null,null,null,null,null,null,null,null,null,null,null,null,null,"",3,1,2,false,"","","",{"$f":"IF($Y47<>FALSE,$C10,\"\")","v":""},null,null,null,46,"","","","","",""]
[null,null,null,null,null,null,null,null,null,null,null,null,null,null,null,null,null,null,null,null,"",3,1,3,false,"","","",{"$f":"IF($Y48<>FALSE,$C11,\"\")","v":""},null,null,null,47,"","","","","",""]
[null,null,null,null,null,null,null,null,null,null,null,null,null,null,null,null,null,null,null,null,"",3,1,4,false,"","","",{"$f":"IF($Y49<>FALSE,$C12,\"\")","v":""},null,null,null,48,"","","","","",""]
[null,null,null,null,null,null,null,null,null,null,null,null,null,null,null,null,null,null,null,null,"",3,1,5,false,"","","",{"$f":"IF($Y50<>FALSE,$C13,\"\")","v":""},null,null,null,49,"","","","","",""]
[null,null,null,null,null,null,null,null,null,null,null,null,null,null,null,null,null,null,null,null,"",3,2,1,false,"","","",{"$f":"IF($Y51<>FALSE,$C16,\"\")","v":""},null,null,null,50,"","","","","",""]
[null,null,null,null,null,null,null,null,null,null,null,null,null,null,null,null,null,null,null,null,"",3,2,2,false,"","","",{"$f":"IF($Y52<>FALSE,$C17,\"\")","v":""},null,null,null,51,"","","","","",""]
[null,null,null,null,null,null,null,null,null,null,null,null,null,null,null,null,null,null,null,null,"",3,2,3,false,"","","",{"$f":"IF($Y53<>FALSE,$C18,\"\")","v":""},null,null,null,52,"","","","","",""]
[null,null,null,null,null,null,null,null,null,null,null,null,null,null,null,null,null,null,null,null,"",3,3,1,false,"","","",{"$f":"IF($Y54<>FALSE,$C21,\"\")","v":""},null,null,null,53,"","","","","",""]
[null,null,null,null,null,null,null,null,null,null,null,null,null,null,null,null,null,null,null,null,"",3,3,2,false,"","","",{"$f":"IF($Y55<>FALSE,$C22,\"\")","v":""},null,null,null,54,"","","","","",""]
[null,null,null,null,null,null,null,null,null,null,null,null,null,null,null,null,null,null,null,null,"",3,4,1,false,"","","",{"$f":"IF($Y56<>FALSE,$C25,\"\")","v":""},null,null,null,55,"","","","","",""]
[null,null,null,null,null,null,null,null,null,null,null,null,null,null,null,null,null,null,null,null,"",3,4,2,false,"","","","",null,null,null,56,"","","","","",""]
[null,null,null,null,null,null,null,null,null,null,null,null,null,null,null,null,null,null,null,null,"",3,4,3,false,"","","","",null,null,null,57,"","","","","",""]
[null,null,null,null,null,null,null,null,null,null,null,null,null,null,null,null,null,null,null,null,"",3,4,4,false,"","","","",null,null,null,58,"","","","","",""]
[null,null,null,null,null,null,null,null,null,null,null,null,null,null,null,null,null,null,null,null,"",3,4,5,false,"","","","",null,null,null,59,"","","","","",""]
[null,null,null,null,null,null,null,null,null,null,null,null,null,null,null,null,null,null,null,null,"",3,4,6,false,"","","","",null,null,null,60,"","","","","",""]
[null,null,null,null,null,null,null,null,null,null,null,null,null,null,null,null,null,null,null,null,"",3,4,7,false,"","","","",null,null,null,61,"","","","","",""]
[null,null,null,null,null,null,null,null,null,null,null,null,null,null,null,null,null,null,null,null,"",3,4,8,false,"","","","",null,null,null,62,"","","","","",""]
[null,null,null,null,null,null,null,null,null,null,null,null,null,null,null,null,null,null,null,null,"",3,5,1,false,"","","",{"$f":"IF($Y64<>FALSE,$C35,\"\")","v":""},null,null,null,63,"","","","","",""]
[null,null,null,null,null,null,null,null,null,null,null,null,null,null,null,null,null,null,null,null,"",3,5,2,false,"","","",{"$f":"IF($Y65<>FALSE,$C36,\"\")","v":""},null,null,null,64,"","","","","",""]
[null,null,null,null,null,null,null,null,null,null,null,null,null,null,null,null,null,null,null,null,"",3,6,1,false,"",{"$f":"IF($Y66<>FALSE,VLOOKUP($V66,$N:$O,2,FALSE),\"\")","v":""},{"$f":"IF($Y66<>FALSE,VLOOKUP($W66,$P:$Q,2,FALSE),\"\")","v":""},{"$f":"IF($Y66<>FALSE,$C39,\"\")","v":""},null,null,null,65,{"$f":"IFERROR(VLOOKUP($AG66,$U:$V,2,FALSE),\"\")","v":""},{"$f":"IFERROR(VLOOKUP($AG66,$U:$AC,7,FALSE),\"\")","v":""},{"$f":"IFERROR(VLOOKUP($AG66,$U:$W,3,FALSE),\"\")","v":""},{"$f":"IFERROR(VLOOKUP($AG66,$U:$AC,8,FALSE),\"\")","v":""},{"$f":"IFERROR(VLOOKUP($AG66,$U:$X,4,FALSE),\"\")","v":""},{"$f":"IFERROR(VLOOKUP($AG66,$U:$AC,9,FALSE),\"\")","v":""}]
[null,null,null,null,null,null,null,null,null,null,null,null,null,null,null,null,null,null,null,null,{"$f":"IFERROR(RANK($Z67,$Z$2:$Z$89,1),\"\")","v":""},3,6,2,false,"","","",{"$f":"IF($Y67<>FALSE,$C40,\"\")","v":""},null,null,null,66,"","","","","",""]
[null,null,null,null,null,null,null,null,null,null,null,null,null,null,null,null,null,null,null,null,"",4,1,1,false,{"$f":"IF($Y68<>FALSE,VALUE($V68&$W68&$X68),\"\")","v":""},"","",{"$f":"IF($Y68<>FALSE,$C9,\"\")","v":""},null,null,null,67,"","","","","",""]
[null,null,null,null,null,null,null,null,null,null,null,null,null,null,null,null,null,null,null,null,"",4,1,2,false,"","","",{"$f":"IF($Y69<>FALSE,$C10,\"\")","v":""},null,null,null,68,"","","","","",""]
[null,null,null,null,null,null,null,null,null,null,null,null,null,null,null,null,null,null,null,null,"",4,1,3,false,"","","",{"$f":"IF($Y70<>FALSE,$C11,\"\")","v":""},null,null,null,69,"","","","","",""]
[null,null,null,null,null,null,null,null,null,null,null,null,null,null,null,null,null,null,null,null,"",4,1,4,false,"","","",{"$f":"IF($Y71<>FALSE,$C12,\"\")","v":""},null,null,null,70,"","","","","",""]
[null,null,null,null,null,null,null,null,null,null,null,null,null,null,null,null,null,null,null,null,"",4,1,5,false,"","","",{"$f":"IF($Y72<>FALSE,$C13,\"\")","v":""},null,null,null,71,"","","","","",""]
[null,null,null,null,null,null,null,null,null,null,null,null,null,null,null,null,null,null,null,null,"",4,2,1,false,"","","",{"$f":"IF($Y73<>FALSE,$C16,\"\")","v":""},null,null,null,72,"","","","","",""]
[null,null,null,null,null,null,null,null,null,null,null,null,null,null,null,null,null,null,null,null,"",4,2,2,false,"","","",{"$f":"IF($Y74<>FALSE,$C17,\"\")","v":""},null,null,null,73,"","","","","",""]
[null,null,null,null,null,null,null,null,null,null,null,null,null,null,null,null,null,null,null,null,"",4,2,3,false,"","","",{"$f":"IF($Y75<>FALSE,$C18,\"\")","v":""},null,null,null,74,"","","","","",""]
[null,null,null,null,null,null,null,null,null,null,null,null,null,null,null,null,null,null,null,null,"",4,3,1,false,"","","",{"$f":"IF($Y76<>FALSE,$C21,\"\")","v":""},null,null,null,75,"","","","","",""]
[null,null,null,null,null,null,null,null,null,null,null,null,null,null,null,null,null,null,null,null,"",4,3,2,false,"","","",{"$f":"IF($Y77<>FALSE,$C22,\"\")","v":""},null,null,null,76,"","","","","",""]
[null,null,null,null,null,null,null,null,null,null,null,null,null,null,null,null,null,null,null,null,"",4,4,1,false,"","","",{"$f":"IF($Y78<>FALSE,$C25,\"\")","v":""},null,null,null,77,"","","","","",""]
[null,null,null,null,null,null,null,null,null,null,null,null,null,null,null,null,null,null,null,null,"",4,4,2,false,"","","","",null,null,null,78,"","","","","",""]
[null,null,null,null,null,null,null,null,null,null,null,null,null,null,null,null,null,null,null,null,"",4,4,3,false,"","","","",null,null,null,79,"","","","","",""]
[null,null,null,null,null,null,null,null,null,null,null,null,null,null,null,null,null,null,null,null,"",4,4,4,false,"","","","",null,null,null,80,"","","","","",""]
[null,null,null,null,null,null,null,null,null,null,null,null,null,null,null,null,null,null,null,null,"",4,4,5,false,"","","","",null,null,null,81,"","","","","",""]
[null,null,null,null,null,null,null,null,null,null,null,null,null,null,null,null,null,null,null,null,"",4,4,6,false,"","","","",null,null,null,82,"","","","","",""]
[null,null,null,null,null,null,null,null,null,null,null,null,null,null,null,null,null,null,null,null,"",4,4,7,false,"","","","",null,null,null,83,"","","","","",""]
[null,null,null,null,null,null,null,null,null,null,null,null,null,null,null,null,null,null,null,null,"",4,4,8,false,"","","","",null,null,null,84,"","","","","",""]
[null,null,null,null,null,null,null,null,null,null,null,null,null,null,null,null,null,null,null,null,"",4,5,1,false,"","","",{"$f":"IF($Y86<>FALSE,$C35,\"\")","v":""},null,null,null,85,"","","","","",""]
[null,null,null,null,null,null,null,null,null,null,null,null,null,null,null,null,null,null,null,null,"",4,5,2,false,"","","",{"$f":"IF($Y87<>FALSE,$C36,\"\")","v":""},null,null,null,86,"","","","","",""]
[null,null,null,null,null,null,null,null,null,null,null,null,null,null,null,null,null,null,null,null,"",4,6,1,false,"","","",{"$f":"IF($Y88<>FALSE,$C39,\"\")","v":""},null,null,null,87,"","","","","",""]
[null,null,null,null,null,null,null,null,null,null,null,null,null,null,null,null,null,null,null,null,"",4,6,2,false,"","","",{"$f":"IF($Y89<>FALSE,$C40,\"\")","v":""},null,null,null,88,"","","","","",""]
[null,null,null,null,null,null,null,null,null,null,null,null,null,null,null,null,null,null,null,null,null,null,null,null,null,null,null,null,null,null,null,null,89,"","","","","",""]

{"sheet":"Step3","index":4,"n_rows":122,"n_cols":56,"rows_kept":122,"cut":false,"hidden":false,"merged":[]}
[null,null,null,null,null,null,null,null,null,null,null,null,null,null,null,null,"①5～3日前",null,null,null,null,"②2日前",null,null,null,null,"③1日前",null,null,null,null,"④当日",null,null,null,null,1,"5～3日前",1,"【日頃の備え】",null,null,null,null,null,null,null,null,1,{"$f":"IFERROR(VLOOKUP($AW1,$AO:$AP,2,FALSE),\"\")","v":""},{"$f":"IFERROR(VLOOKUP(AX1,AK:AL,2,FALSE),\"\")","v":""},{"$f":"AY1","v":""},{"$f":"IFERROR(VLOOKUP($AW1,$AO:$AQ,3,FALSE),\"\")","v":""},{"$f":"IFERROR(VLOOKUP($BA1,$AM:$AN,2,FALSE),\"\")","v":""},{"$f":"BB1","v":""},{"$f":"IFERROR(VLOOKUP($AW1,$AO:$AT,6,FALSE),\"\")","v":""}]
["Step3.","Step2で考えた以下の行動について、日ごとに実施する順序を決めてください。",null,null,null,null,null,null,null,null,null,null,null,null,null,null,null,null,null,null,null,null,null,null,null,null,null,null,null,null,null,null,null,null,null,null,2,"2日前\n夕方まで",2,"【情報収集】",null,null,null,null,null,null,null,null,2,{"$f":"IFERROR(VLOOKUP($AW2,$AO:$AP,2,FALSE),\"\")","v":""},"",{"$f":"IF($AX1<>$AX2,$AY2,\"\")","v":""},{"$f":"IFERROR(VLOOKUP($AW2,$AO:$AQ,3,FALSE),\"\")","v":""},"",{"$f":"IF(OR($BA1<>$BA2,$AX1<>$AX2),$BB2,\"\")","v":""},{"$f":"IFERROR(VLOOKUP($AW2,$AO:$AT,6,FALSE),\"\")","v":""}]
[null,"※セルをクリックすると、順序を選択できます。",null,null,null,null,null,null,"　入力後は、「ワークシート」で実施の順番を確認しましょう。",null,null,null,null,null,null,null,null,null,null,null,null,null,null,null,null,null,null,null,null,null,null,null,null,null,null,null,3,"1日前\n夕方まで",3,"【家族等への連絡】",null,null,null,null,null,null,null,null,3,"","",{"$f":"IF($AX2<>$AX3,$AY3,\"\")","v":""},"","","",""]
[null,null,null,null,null,null,null,null,"　「印刷（マイタイムライン）」を印刷すれば完成です。",null,null,null,null,null,null,null,null,null,null,null,null,null,null,null,null,null,null,null,null,null,null,null,null,null,null,null,4,"当　日",4,"【避難の準備】",null,null,null,null,null,null,null,null,4,"","","","","","",""]
[null,null,null,null,null,null,null,null,null,null,null,null,null,null,null,null,null,null,null,null,null,null,null,null,null,null,null,null,null,null,null,null,null,null,null,null,null,null,5,"【地域の助け合い】","順番","日程","大項目","小項目",null,"小項目名",null,null,5,"","","","","","",""]
[null,null,null,null,null,null,null,null,null,null,null,null,null,null,null,null,null,null,null,null,null,null,null,null,null,null,null,null,null,null,null,null,null,null,null,null,null,null,6,"【避難開始】",{"$f":"IFERROR(RANK($AS6,$AS$6:$AS$122,1),\"\")","v":""},null,null,null,{"$f":"IF($AP6<>\"\",VALUE($AP6&TEXT($I6,\"00\")&$AQ6&$AR6),\"\")","v":""},{"$f":"IF($AP6<>\"\",$E6,\"\")","v":""},null,null,6,"","","","","","",""]
[null,null,null,null,null,null,null,null,null,null,null,null,null,null,null,null,null,null,null,null,null,null,null,null,null,null,null,null,null,null,null,null,null,null,null,null,null,null,null,null,{"$f":"IFERROR(RANK($AS7,$AS$6:$AS$122,1),\"\")","v":""},null,null,null,{"$f":"IF($AP7<>\"\",VALUE($AP7&TEXT($I7,\"00\")&$AQ7&$AR7),\"\")","v":""},"",null,null,7,"","","","","","",""]
[null,null,null,null,null,null,null,null,null,null,null,null,null,null,null,null,null,null,null,null,null,null,null,null,null,null,null,null,null,null,null,null,null,null,null,null,null,null,null,null,"",null,null,null,"","",null,null,8,"","","","","","",""]
[null,null,null,null,null,null,null,null,null,null,null,null,null,null,null,null,null,null,null,null,null,null,null,null,null,null,null,null,null,null,null,null,null,null,null,null,null,null,null,null,"",null,null,null,"","",null,null,9,"","","","","","",""]
[null,null,null,null,null,null,null,null,null,null,null,null,null,null,null,null,null,null,null,null,null,null,null,null,null,null,null,null,null,null,null,null,null,null,null,null,null,null,null,null,"",null,null,null,"","",null,null,10,"","","","","","",""]
[null,null,null,null,null,null,null,null,null,null,null,null,null,null,null,null,null,null,null,null,null,null,null,null,null,null,null,null,null,null,null,null,null,null,null,null,null,null,null,null,"",null,null,null,"","",null,null,11,"","","","","","",""]
[null,null,null,null,null,null,null,null,null,null,null,null,null,null,null,null,null,null,null,null,null,null,null,null,null,null,null,null,null,null,null,null,null,null,null,null,null,null,null,null,"",null,null,null,"","",null,null,12,"","","","","","",""]
[null,null,null,null,null,null,null,null,null,null,null,null,null,null,null,null,null,null,null,null,null,null,null,null,null,null,null,null,null,null,null,null,null,null,null,null,null,null,null,null,"",null,null,null,"","",null,null,13,"","","","","","",""]
[null,null,null,null,null,null,null,null,null,null,null,null,null,null,null,null,null,null,null,null,null,null,null,null,null,null,null,null,null,null,null,null,null,null,null,null,null,null,null,null,"",null,null,null,"","",null,null,14,"","","","","","",""]
[null,null,null,null,null,null,null,null,null,null,null,null,null,null,null,null,null,null,null,null,null,null,null,null,null,null,null,null,null,null,null,null,null,null,null,null,null,null,null,null,"",null,null,null,"","",null,null,15,"","","","","","",""]
[null,null,null,null,null,null,null,null,null,null,null,null,null,null,null,null,null,null,null,null,null,null,null,null,null,null,null,null,null,null,null,null,null,null,null,null,null,null,null,null,"",null,null,null,"","",null,null,16,"","","","","","",""]
[null,null,null,null,null,null,null,null,null,null,null,null,null,null,null,null,null,null,null,null,null,null,null,null,null,null,null,null,null,null,null,null,null,null,null,null,null,null,null,null,"",null,null,null,"","",null,null,17,"","","","","","",""]
[null,null,null,null,null,null,null,null,null,null,null,null,null,null,null,null,null,null,null,null,null,null,null,null,null,null,null,null,null,null,null,null,null,null,null,null,null,null,null,null,"",null,null,null,"","",null,null,18,"","","","","","",""]
[null,null,null,null,null,null,null,null,null,null,null,null,null,null,null,null,null,null,null,null,null,null,null,null,null,null,null,null,null,null,null,null,null,null,null,null,null,null,null,null,"",null,null,null,"","",null,null,19,"","","","","","",""]
[null,null,null,null,null,null,null,null,null,null,null,null,null,null,null,null,null,null,null,null,null,null,null,null,null,null,null,null,null,null,null,null,null,null,null,null,null,null,null,null,"",null,null,null,"","",null,null,20,"","","","","","",""]
[null,null,null,null,null,null,null,null,null,null,null,null,null,null,null,null,null,null,null,null,null,null,null,null,null,null,null,null,null,null,null,null,null,null,null,null,null,null,null,null,"",null,null,null,"","",null,null,21,"","","","","","",""]
[null,null,null,null,null,null,null,null,null,null,null,null,null,null,null,null,null,null,null,null,null,null,null,null,null,null,null,null,null,null,null,null,null,null,null,null,null,null,null,null,"",null,null,null,"","",null,null,22,"","","","","","",""]
[null,null,null,null,null,null,null,null,null,null,null,null,null,null,null,null,null,null,null,null,null,null,null,null,null,null,null,null,null,null,null,null,null,null,null,null,null,null,null,null,"",null,null,null,{"$f":"IF($AP23<>\"\",VALUE($AP23&TEXT($I23,\"00\")&$AQ23&$AR23),\"\")","v":""},"",null,null,23,"","","","","","",""]
[null,null,null,null,null,null,null,null,null,null,null,null,null,null,null,null,null,null,null,null,null,null,null,null,null,null,null,null,null,null,null,null,null,null,null,null,null,null,null,null,"",null,null,null,"","",null,null,24,"","","","","","",""]
[null,null,null,null,null,null,null,null,null,null,null,null,null,null,null,null,null,null,null,null,null,null,null,null,null,null,null,null,null,null,null,null,null,null,null,null,null,null,null,null,"",null,null,null,"","",null,null,25,"","","","","","",""]
[null,null,null,null,null,null,null,null,null,null,null,null,null,null,null,null,null,null,null,null,null,null,null,null,null,null,null,null,null,null,null,null,null,null,null,null,null,null,null,null,"",null,null,null,"","",null,null,26,"","","","","","",""]
[null,null,null,null,null,null,null,null,null,null,null,null,null,null,null,null,null,null,null,null,null,null,null,null,null,null,null,null,null,null,null,null,null,null,null,null,null,null,null,null,"",null,null,null,"","",null,null,27,"","","","","","",""]
[null,null,null,null,null,null,null,null,null,null,null,null,null,null,null,null,null,null,null,null,null,null,null,null,null,null,null,null,null,null,null,null,null,null,null,null,null,null,null,null,"",null,null,null,"","",null,null,28,"","","","","","",""]
[null,null,null,null,null,null,null,null,null,null,null,null,null,null,null,null,null,null,null,null,null,null,null,null,null,null,null,null,null,null,null,null,null,null,null,null,null,null,null,null,"",null,null,null,"","",null,null,29,"","","","","","",""]
[null,null,null,null,null,null,null,null,null,null,null,null,null,null,null,null,null,null,null,null,null,null,null,null,null,null,null,null,null,null,null,null,null,null,null,null,null,null,null,null,"",null,null,null,"","",null,null,30,"","","","","","",""]
[null,null,null,null,null,null,null,null,null,null,null,null,null,null,null,null,null,null,null,null,null,null,null,null,null,null,null,null,null,null,null,null,null,null,null,null,null,null,null,null,"",null,null,null,"","",null,null,31,"","","","","","",""]
[null,null,null,null,null,null,null,null,null,null,null,null,null,null,null,null,null,null,null,null,null,null,null,null,null,null,null,null,null,null,null,null,null,null,null,null,null,null,null,null,"",null,null,null,"","",null,null,32,"","","","","","",""]
[null,null,null,null,null,null,null,null,null,null,null,null,null,null,null,null,null,null,null,null,null,null,null,null,null,null,null,null,null,null,null,null,null,null,null,null,null,null,null,null,"",null,null,null,"","",null,null,33,"","","","","","",""]
[null,null,null,null,null,null,null,null,null,null,null,null,null,null,null,null,null,null,null,null,null,null,null,null,null,null,null,null,null,null,null,null,null,null,null,null,null,null,null,null,"",null,null,null,{"$f":"IF($AP34<>\"\",VALUE($AP34&TEXT($I34,\"00\")&$AQ34&$AR34),\"\")","v":""},"",null,null,34,"","","","","","",""]
[null,null,null,null,null,null,null,null,null,null,null,null,null,null,null,null,null,null,null,null,null,null,null,null,null,null,null,null,null,null,null,null,null,null,null,null,null,null,null,null,"",null,null,null,"","",null,null,35,"","","","","","",""]
[null,null,null,null,null,null,null,null,null,null,null,null,null,null,null,null,null,null,null,null,null,null,null,null,null,null,null,null,null,null,null,null,null,null,null,null,null,null,null,null,"",null,null,null,"","",null,null,36,"","","","","","",""]
[null,null,null,null,null,null,null,null,null,null,null,null,null,null,null,null,null,null,null,null,null,null,null,null,null,null,null,null,null,null,null,null,null,null,null,null,null,null,null,null,"",null,null,null,"","",null,null,37,"","","","","","",""]
[null,null,null,null,null,null,null,null,null,null,null,null,null,null,null,null,null,null,null,null,null,null,null,null,null,null,null,null,null,null,null,null,null,null,null,null,null,null,null,null,"",null,null,null,"",{"$f":"IF($AP38<>\"\",$E38,\"\")","v":""},null,null,38,"","","","","","",""]
[null,null,null,null,null,null,null,null,null,null,null,null,null,null,null,null,null,null,null,null,null,null,null,null,null,null,null,null,null,null,null,null,null,null,null,null,null,null,null,null,"",null,null,null,"","",null,null,39,"","","","","","",""]
[null,null,null,null,null,null,null,null,null,null,null,null,null,null,null,null,null,null,null,null,null,null,null,null,null,null,null,null,null,null,null,null,null,null,null,null,null,null,null,null,"",null,null,null,"","",null,null,40,"","","","","","",""]
[null,null,null,null,null,null,null,null,null,null,null,null,null,null,null,null,null,null,null,null,null,null,null,null,null,null,null,null,null,null,null,null,null,null,null,null,null,null,null,null,"",null,null,null,"","",null,null,41,"","","","","","",""]
[null,null,null,null,null,null,null,null,null,null,null,null,null,null,null,null,null,null,null,null,null,null,null,null,null,null,null,null,null,null,null,null,null,null,null,null,null,null,null,null,"",null,null,null,"",""]
[null,null,null,null,null,null,null,null,null,null,null,null,null,null,null,null,null,null,null,null,null,null,null,null,null,null,null,null,null,null,null,null,null,null,null,null,null,null,null,null,"",null,null,null,"",""]
[null,null,null,null,null,null,null,null,null,null,null,null,null,null,null,null,null,null,null,null,null,null,null,null,null,null,null,null,null,null,null,null,null,null,null,null,null,null,null,null,"",null,null,null,"",""]
[null,null,null,null,null,null,null,null,null,null,null,null,null,null,null,null,null,null,null,null,null,null,null,null,null,null,null,null,null,null,null,null,null,null,null,null,null,null,null,null,"",null,null,null,"",""]
[null,null,null,null,null,null,null,null,null,null,null,null,null,null,null,null,null,null,null,null,null,null,null,null,null,null,null,null,null,null,null,null,null,null,null,null,null,null,null,null,"",null,null,null,"",""]
[null,null,null,null,null,null,null,null,null,null,null,null,null,null,null,null,null,null,null,null,null,null,null,null,null,null,null,null,null,null,null,null,null,null,null,null,null,null,null,null,"",null,null,null,{"$f":"IF($AP47<>\"\",VALUE($AP47&TEXT($I47,\"00\")&$AQ47&$AR47),\"\")","v":""},""]
[null,null,null,null,null,null,null,null,null,null,null,null,null,null,null,null,null,null,null,null,null,null,null,null,null,null,null,null,null,null,null,null,null,null,null,null,null,null,null,null,"",null,null,null,"",""]
[null,null,null,null,null,null,null,null,null,null,null,null,null,null,null,null,null,null,null,null,null,null,null,null,null,null,null,null,null,null,null,null,null,null,null,null,null,null,null,null,"",null,null,null,"",""]
[null,null,null,null,null,null,null,null,null,null,null,null,null,null,null,null,null,null,null,null,null,null,null,null,null,null,null,null,null,null,null,null,null,null,null,null,null,null,null,null,"",null,null,null,"",""]
[null,null,null,null,null,null,null,null,null,null,null,null,null,null,null,null,null,null,null,null,null,null,null,null,null,null,null,null,null,null,null,null,null,null,null,null,null,null,null,null,"",null,null,null,"",""]
[null,null,null,null,null,null,null,null,null,null,null,null,null,null,null,null,null,null,null,null,null,null,null,null,null,null,null,null,null,null,null,null,null,null,null,null,null,null,null,null,"",null,null,null,"",""]
[null,null,null,null,null,null,null,null,null,null,null,null,null,null,null,null,null,null,null,null,null,null,null,null,null,null,null,null,null,null,null,null,null,null,null,null,null,null,null,null,"",null,null,null,"",""]
[null,null,null,null,null,null,null,null,null,null,null,null,null,null,null,null,null,null,null,null,null,null,null,null,null,null,null,null,null,null,null,null,null,null,null,null,null,null,null,null,"",null,null,null,"",""]
[null,null,null,null,null,null,null,null,null,null,null,null,null,null,null,null,null,null,null,null,null,null,null,null,null,null,null,null,null,null,null,null,null,null,null,null,null,null,null,null,"",null,null,null,"",""]
[null,null,null,null,null,null,null,null,null,null,null,null,null,null,null,null,null,null,null,null,null,null,null,null,null,null,null,null,null,null,null,null,null,null,null,null,null,null,null,null,"",null,null,null,{"$f":"IF($AP56<>\"\",VALUE($AP56&TEXT($I56,\"00\")&$AQ56&$AR56),\"\")","v":""},""]
[null,null,null,null,null,null,null,null,null,null,null,null,null,null,null,null,null,null,null,null,null,null,null,null,null,null,null,null,null,null,null,null,null,null,null,null,null,null,null,null,"",null,null,null,"",""]
[null,null,null,null,null,null,null,null,null,null,null,null,null,null,null,null,null,null,null,null,null,null,null,null,null,null,null,null,null,null,null,null,null,null,null,null,null,null,null,null,"",null,null,null,"",""]
[null,null,null,null,null,null,null,null,null,null,null,null,null,null,null,null,null,null,null,null,null,null,null,null,null,null,null,null,null,null,null,null,null,null,null,null,null,null,null,null,"",null,null,null,"",""]
[null,null,null,null,null,null,null,null,null,null,null,null,null,null,null,null,null,null,null,null,null,null,null,null,null,null,null,null,null,null,null,null,null,null,null,null,null,null,null,null,"",null,null,null,"",""]
[null,null,null,null,null,null,null,null,null,null,null,null,null,null,null,null,null,null,null,null,null,null,null,null,null,null,null,null,null,null,null,null,null,null,null,null,null,null,null,null,"",null,null,null,"",""]
[null,null,null,null,null,null,null,null,null,null,null,null,null,null,null,null,null,null,null,null,null,null,null,null,null,null,null,null,null,null,null,null,null,null,null,null,null,null,null,null,"",null,null,null,"",""]
[null,null,null,null,null,null,null,null,null,null,null,null,null,null,null,null,null,null,null,null,null,null,null,null,null,null,null,null,null,null,null,null,null,null,null,null,null,null,null,null,"",null,null,null,"",""]
[null,null,null,null,null,null,null,null,null,null,null,null,null,null,null,null,null,null,null,null,null,null,null,null,null,null,null,null,null,null,null,null,null,null,null,null,null,null,null,null,"",null,null,null,"",""]
[null,null,null,null,null,null,null,null,null,null,null,null,null,null,null,null,null,null,null,null,null,null,null,null,null,null,null,null,null,null,null,null,null,null,null,null,null,null,null,null,"",null,null,null,"",""]
[null,null,null,null,null,null,null,null,null,null,null,null,null,null,null,null,null,null,null,null,null,null,null,null,null,null,null,null,null,null,null,null,null,null,null,null,null,null,null,null,"",null,null,null,"",""]
[null,null,null,null,null,null,null,null,null,null,null,null,null,null,null,null,null,null,null,null,null,null,null,null,null,null,null,null,null,null,null,null,null,null,null,null,null,null,null,null,"",null,null,null,{"$f":"IF($AP67<>\"\",VALUE($AP67&TEXT($I67,\"00\")&$AQ67&$AR67),\"\")","v":""},""]
[null,null,null,null,null,null,null,null,null,null,null,null,null,null,null,null,null,null,null,null,null,null,null,null,null,null,null,null,null,null,null,null,null,null,null,null,null,null,null,null,"",null,null,null,"",""]
[null,null,null,null,null,null,null,null,null,null,null,null,null,null,null,null,null,null,null,null,null,null,null,null,null,null,null,null,null,null,null,null,null,null,null,null,null,null,null,null,"",null,null,null,"",""]
[null,null,null,null,null,null,null,null,null,null,null,null,null,null,null,null,null,null,null,null,null,null,null,null,null,null,null,null,null,null,null,null,null,null,null,null,null,null,null,null,"",null,null,null,"",{"$f":"IF($AP70<>\"\",$E70,\"\")","v":""}]
[null,null,null,null,null,null,null,null,null,null,null,null,null,null,null,null,null,null,null,null,null,null,null,null,null,null,null,null,null,null,null,null,null,null,null,null,null,null,null,null,{"$f":"IFERROR(RANK($AS71,$AS$6:$AS$122,1),\"\")","v":""},null,null,null,{"$f":"IF($AP71<>\"\",VALUE($AP71&TEXT($I71,\"00\")&$AQ71&$AR71),\"\")","v":""},""]
[null,null,null,null,null,null,null,null,null,null,null,null,null,null,null,null,null,null,null,null,null,null,null,null,null,null,null,null,null,null,null,null,null,null,null,null,null,null,null,null,"",null,null,null,"",""]
[null,null,null,null,null,null,null,null,null,null,null,null,null,null,null,null,null,null,null,null,null,null,null,null,null,null,null,null,null,null,null,null,null,null,null,null,null,null,null,null,"",null,null,null,"",""]
[null,null,null,null,null,null,null,null,null,null,null,null,null,null,null,null,null,null,null,null,null,null,null,null,null,null,null,null,null,null,null,null,null,null,null,null,null,null,null,null,"",null,null,null,"",""]
[null,null,null,null,null,null,null,null,null,null,null,null,null,null,null,null,null,null,null,null,null,null,null,null,null,null,null,null,null,null,null,null,null,null,null,null,null,null,null,null,"",null,null,null,{"$f":"IF($AP75<>\"\",VALUE($AP75&TEXT($I75,\"00\")&$AQ75&$AR75),\"\")","v":""},""]
[null,null,null,null,null,null,null,null,null,null,null,null,null,null,null,null,null,null,null,null,null,null,null,null,null,null,null,null,null,null,null,null,null,null,null,null,null,null,null,null,"",null,null,null,{"$f":"IF($AP76<>\"\",VALUE($AP76&TEXT($I76,\"00\")&$AQ76&$AR76),\"\")","v":""},""]
[null,null,null,null,null,null,null,null,null,null,null,null,null,null,null,null,null,null,null,null,null,null,null,null,null,null,null,null,null,null,null,null,null,null,null,null,null,null,null,null,"",null,null,null,"",""]
[null,null,null,null,null,null,null,null,null,null,null,null,null,null,null,null,null,null,null,null,null,null,null,null,null,null,null,null,null,null,null,null,null,null,null,null,null,null,null,null,"",null,null,null,"",""]
[null,null,null,null,null,null,null,null,null,null,null,null,null,null,null,null,null,null,null,null,null,null,null,null,null,null,null,null,null,null,null,null,null,null,null,null,null,null,null,null,"",null,null,null,"",""]
[null,null,null,null,null,null,null,null,null,null,null,null,null,null,null,null,null,null,null,null,null,null,null,null,null,null,null,null,null,null,null,null,null,null,null,null,null,null,null,null,"",null,null,null,"",""]
[null,null,null,null,null,null,null,null,null,null,null,null,null,null,null,null,null,null,null,null,null,null,null,null,null,null,null,null,null,null,null,null,null,null,null,null,null,null,null,null,"",null,null,null,"",""]
[null,null,null,null,null,null,null,null,null,null,null,null,null,null,null,null,null,null,null,null,null,null,null,null,null,null,null,null,null,null,null,null,null,null,null,null,null,null,null,null,"",null,null,null,"",""]
[null,null,null,null,null,null,null,null,null,null,null,null,null,null,null,null,null,null,null,null,null,null,null,null,null,null,null,null,null,null,null,null,null,null,null,null,null,null,null,null,"",null,null,null,"",""]
[null,null,null,null,null,null,null,null,null,null,null,null,null,null,null,null,null,null,null,null,null,null,null,null,null,null,null,null,null,null,null,null,null,null,null,null,null,null,null,null,"",null,null,null,"",""]
[null,null,null,null,null,null,null,null,null,null,null,null,null,null,null,null,null,null,null,null,null,null,null,null,null,null,null,null,null,null,null,null,null,null,null,null,null,null,null,null,"",null,null,null,"",""]
[null,null,null,null,null,null,null,null,null,null,null,null,null,null,null,null,null,null,null,null,null,null,null,null,null,null,null,null,null,null,null,null,null,null,null,null,null,null,null,null,"",null,null,null,"",""]
[null,null,null,null,null,null,null,null,null,null,null,null,null,null,null,null,null,null,null,null,null,null,null,null,null,null,null,null,null,null,null,null,null,null,null,null,null,null,null,null,"",null,null,null,"",""]
[null,null,null,null,null,null,null,null,null,null,null,null,null,null,null,null,null,null,null,null,null,null,null,null,null,null,null,null,null,null,null,null,null,null,null,null,null,null,null,null,"",null,null,null,"",""]
[null,null,null,null,null,null,null,null,null,null,null,null,null,null,null,null,null,null,null,null,null,null,null,null,null,null,null,null,null,null,null,null,null,null,null,null,null,null,null,null,"",null,null,null,"",""]
[null,null,null,null,null,null,null,null,null,null,null,null,null,null,null,null,null,null,null,null,null,null,null,null,null,null,null,null,null,null,null,null,null,null,null,null,null,null,null,null,"",null,null,null,"",""]
[null,null,null,null,null,null,null,null,null,null,null,null,null,null,null,null,null,null,null,null,null,null,null,null,null,null,null,null,null,null,null,null,null,null,null,null,null,null,null,null,"",null,null,null,"",""]
[null,null,null,null,null,null,null,null,null,null,null,null,null,null,null,null,null,null,null,null,null,null,null,null,null,null,null,null,null,null,null,null,null,null,null,null,null,null,null,null,"",null,null,null,{"$f":"IF($AP92<>\"\",VALUE($AP92&TEXT($I92,\"00\")&$AQ92&$AR92),\"\")","v":""},""]
[null,null,null,null,null,null,null,null,null,null,null,null,null,null,null,null,null,null,null,null,null,null,null,null,null,null,null,null,null,null,null,null,null,null,null,null,null,null,null,null,"",null,null,null,"",""]
[null,null,null,null,null,null,null,null,null,null,null,null,null,null,null,null,null,null,null,null,null,null,null,null,null,null,null,null,null,null,null,null,null,null,null,null,null,null,null,null,"",null,null,null,"",""]
[null,null,null,null,null,null,null,null,null,null,null,null,null,null,null,null,null,null,null,null,null,null,null,null,null,null,null,null,null,null,null,null,null,null,null,null,null,null,null,null,"",null,null,null,{"$f":"IF($AP95<>\"\",VALUE($AP95&TEXT($I95,\"00\")&$AQ95&$AR95),\"\")","v":""},""]
[null,null,null,null,null,null,null,null,null,null,null,null,null,null,null,null,null,null,null,null,null,null,null,null,null,null,null,null,null,null,null,null,null,null,null,null,null,null,null,null,"",null,null,null,{"$f":"IF($AP96<>\"\",VALUE($AP96&TEXT($I96,\"00\")&$AQ96&$AR96),\"\")","v":""},""]
[null,null,null,null,null,null,null,null,null,null,null,null,null,null,null,null,null,null,null,null,null,null,null,null,null,null,null,null,null,null,null,null,null,null,null,null,null,null,null,null,"",null,null,null,"",""]
[null,null,null,null,null,null,null,null,null,null,null,null,null,null,null,null,null,null,null,null,null,null,null,null,null,null,null,null,null,null,null,null,null,null,null,null,null,null,null,null,"",null,null,null,"",""]
[null,null,null,null,null,null,null,null,null,null,null,null,null,null,null,null,null,null,null,null,null,null,null,null,null,null,null,null,null,null,null,null,null,null,null,null,null,null,null,null,"",null,null,null,"",""]
[null,null,null,null,null,null,null,null,null,null,null,null,null,null,null,null,null,null,null,null,null,null,null,null,null,null,null,null,null,null,null,null,null,null,null,null,null,null,null,null,"",null,null,null,"",""]
[null,null,null,null,null,null,null,null,null,null,null,null,null,null,null,null,null,null,null,null,null,null,null,null,null,null,null,null,null,null,null,null,null,null,null,null,null,null,null,null,"",null,null,null,"",""]
[null,null,null,null,null,null,null,null,null,null,null,null,null,null,null,null,null,null,null,null,null,null,null,null,null,null,null,null,null,null,null,null,null,null,null,null,null,null,null,null,"",null,null,null,"",{"$f":"IF($AP102<>\"\",$E102,\"\")","v":""}]
[null,null,null,null,null,null,null,null,null,null,null,null,null,null,null,null,null,null,null,null,null,null,null,null,null,null,null,null,null,null,null,null,null,null,null,null,null,null,null,null,"",null,null,null,"",""]
[null,null,null,null,null,null,null,null,null,null,null,null,null,null,null,null,null,null,null,null,null,null,null,null,null,null,null,null,null,null,null,null,null,null,null,null,null,null,null,null,"",null,null,null,"",""]
[null,null,null,null,null,null,null,null,null,null,null,null,null,null,null,null,null,null,null,null,null,null,null,null,null,null,null,null,null,null,null,null,null,null,null,null,null,null,null,null,"",null,null,null,"",""]
[null,null,null,null,null,null,null,null,null,null,null,null,null,null,null,null,null,null,null,null,null,null,null,null,null,null,null,null,null,null,null,null,null,null,null,null,null,null,null,null,"",null,null,null,"",""]
[null,null,null,null,null,null,null,null,null,null,null,null,null,null,null,null,null,null,null,null,null,null,null,null,null,null,null,null,null,null,null,null,null,null,null,null,null,null,null,null,"",null,null,null,"",""]
[null,null,null,null,null,null,null,null,null,null,null,null,null,null,null,null,null,null,null,null,null,null,null,null,null,null,null,null,null,null,null,null,null,null,null,null,null,null,null,null,"",null,null,null,"",""]
[null,null,null,null,null,null,null,null,null,null,null,null,null,null,null,null,null,null,null,null,null,null,null,null,null,null,null,null,null,null,null,null,null,null,null,null,null,null,null,null,"",null,null,null,"",""]
[null,null,null,null,null,null,null,null,null,null,null,null,null,null,null,null,null,null,null,null,null,null,null,null,null,null,null,null,null,null,null,null,null,null,null,null,null,null,null,null,"",null,null,null,"",""]
[null,null,null,null,null,null,null,null,null,null,null,null,null,null,null,null,null,null,null,null,null,null,null,null,null,null,null,null,null,null,null,null,null,null,null,null,null,null,null,null,"",null,null,null,"",""]
[null,null,null,null,null,null,null,null,null,null,null,null,null,null,null,null,null,null,null,null,null,null,null,null,null,null,null,null,null,null,null,null,null,null,null,null,null,null,null,null,"",null,null,null,{"$f":"IF($AP112<>\"\",VALUE($AP112&TEXT($I112,\"00\")&$AQ112&$AR112),\"\")","v":""},""]
[null,null,null,null,null,null,null,null,null,null,null,null,null,null,null,null,null,null,null,null,null,null,null,null,null,null,null,null,null,null,null,null,null,null,null,null,null,null,null,null,"",null,null,null,"",""]
[null,null,null,null,null,null,null,null,null,null,null,null,null,null,null,null,null,null,null,null,null,null,null,null,null,null,null,null,null,null,null,null,null,null,null,null,null,null,null,null,"",null,null,null,"",""]
[null,null,null,null,null,null,null,null,null,null,null,null,null,null,null,null,null,null,null,null,null,null,null,null,null,null,null,null,null,null,null,null,null,null,null,null,null,null,null,null,"",null,null,null,"",""]
[null,null,null,null,null,null,null,null,null,null,null,null,null,null,null,null,null,null,null,null,null,null,null,null,null,null,null,null,null,null,null,null,null,null,null,null,null,null,null,null,"",null,null,null,"",""]
[null,null,null,null,null,null,null,null,null,null,null,null,null,null,null,null,null,null,null,null,null,null,null,null,null,null,null,null,null,null,null,null,null,null,null,null,null,null,null,null,"",null,null,null,"",""]
[null,null,null,null,null,null,null,null,null,null,null,null,null,null,null,null,null,null,null,null,null,null,null,null,null,null,null,null,null,null,null,null,null,null,null,null,null,null,null,null,"",null,null,null,"",""]
[null,null,null,null,null,null,null,null,null,null,null,null,null,null,null,null,null,null,null,null,null,null,null,null,null,null,null,null,null,null,null,null,null,null,null,null,null,null,null,null,"",null,null,null,"",""]
[null,null,null,null,null,null,null,null,null,null,null,null,null,null,null,null,null,null,null,null,null,null,null,null,null,null,null,null,null,null,null,null,null,null,null,null,null,null,null,null,"",null,null,null,"",""]
[null,null,null,null,null,null,null,null,null,null,null,null,null,null,null,null,null,null,null,null,null,null,null,null,null,null,null,null,null,null,null,null,null,null,null,null,null,null,null,null,"",null,null,null,"",""]
[null,null,null,null,null,null,null,null,null,null,null,null,null,null,null,null,null,null,null,null,null,null,null,null,null,null,null,null,null,null,null,null,null,null,null,null,null,null,null,null,"",null,null,null,"",""]

{"sheet":"ワークシート","index":5,"n_rows":95,"n_cols":14,"rows_kept":95,"cut":false,"hidden":false,"merged":[[52,6,52,10],[53,6,53,10],[54,6,54,10],[63,6,63,10],[64,6,64,10],[65,6,65,10],[66,6,66,10],[67,6,67,10],[58,6,58,10],[59,6,59,10],[60,6,60,10],[61,6,61,10],[62,6,62,10],[92,6,92,10],[93,6,93,10],[71,6,71,10],[72,6,72,10],[73,6,73,10],[74,6,74,10],[75,6,75,10],[76,6,76,10],[77,6,77,10],[78,6,78,10],[79,6,79,10],[80,6,80,10],[81,6,81,10],[82,6,82,10],[83,6,83,10],[87,6,87,10],[88,6,88,10],[89,6,89,10],[90,6,90,10],[91,6,91,10],[89,2,89,4],[90,2,90,4],[91,2,91,4],[92,2,92,4],[93,2,93,4],[81,2,81,4],[82,2,82,4],[83,2,83,4],[87,2,87,4],[88,2,88,4],[76,2,76,4],[77,2,77,4],[78,2,78,4],[79,2,79,4],[80,2,80,4],[71,2,71,4],[72,2,72,4],[73,2,73,4],[74,2,74,4],[75,2,75,4],[63,2,63,4],[64,2,64,4],[65,2,65,4],[66,2,66,4],[67,2,67,4],[58,2,58,4],[59,2,59,4],[60,2,60,4],[61,2,61,4],[62,2,62,4],[52,2,52,4],[53,2,53,4],[54,2,54,4],[26,2,27,6],[47,4,47,6],[28,4,28,6],[29,4,29,6],[30,4,30,6],[31,4,31,6],[32,4,32,6],[33,4,33,6],[44,2,45,6],[38,2,39,6],[34,4,34,6],[35,4,35,6],[51,6,51,10],[13,2,14,6],[7,4,7,6],[8,4,8,6],[9,4,9,6],[51,2,51,4],[40,4,40,6],[41,4,41,6],[46,4,46,6],[23,4,23,6],[10,4,10,6],[15,4,15,6],[16,4,16,6],[17,4,17,6],[22,4,22,6],[20,2,21,6],[1,7,1,10],[1,2,1,6],[2,2,2,6],[2,7,2,10],[6,4,6,6],[4,2,5,6]]}
[" 避難行動計画　マイ・タイムライン　ワークシート　～コロナ禍における風水害に備える！～"]
[null,null,"主な行動項目",null,null,null,null,"実施するタイミング"]
[null,null,"※該当する項目をチェック（複数可）",null,null,null,null,"※該当する時期に○を記入（複数可）"]
[]
[null,null,"１．日頃からの避難に向けた備え",null,null,null,null,"台風がくる"]
[null,null,null,null,null,null,null,"５～3日前","2日前","1日前","当日"]
[null,null,null,null," ３日間の自宅避難の備え",null,null,{"$f":"IF(Step2!$Y2<>FALSE,\"○\",\"\")","v":""},{"$f":"IF(Step2!$Y24<>FALSE,\"○\",\"\")","v":""},{"$f":"IF(Step2!$Y46<>FALSE,\"○\",\"\")","v":""},{"$f":"IF(Step2!$Y68<>FALSE,\"○\",\"\")","v":""}]
[null,null,null,null," 防災グッズや感染症対策などの備え",null,null,{"$f":"IF(Step2!$Y3<>FALSE,\"○\",\"\")","v":""},{"$f":"IF(Step2!$Y25<>FALSE,\"○\",\"\")","v":""},{"$f":"IF(Step2!$Y47<>FALSE,\"○\",\"\")","v":""},{"$f":"IF(Step2!$Y69<>FALSE,\"○\",\"\")","v":""}]
[null,null,null,null," 避難方法や避難先などの決定",null,null,{"$f":"IF(Step2!$Y4<>FALSE,\"○\",\"\")","v":""},{"$f":"IF(Step2!$Y26<>FALSE,\"○\",\"\")","v":""},{"$f":"IF(Step2!$Y48<>FALSE,\"○\",\"\")","v":""},{"$f":"IF(Step2!$Y70<>FALSE,\"○\",\"\")","v":""}]
[null,null,null,null," 要配慮者の避難の備え",null,null,{"$f":"IF(Step2!$Y5<>FALSE,\"○\",\"\")","v":""},{"$f":"IF(Step2!$Y27<>FALSE,\"○\",\"\")","v":""},{"$f":"IF(Step2!$Y49<>FALSE,\"○\",\"\")","v":""},{"$f":"IF(Step2!$Y71<>FALSE,\"○\",\"\")","v":""}]
[null,null,null,null,"ペット避難の備え",null,null,{"$f":"IF(Step2!$Y6<>FALSE,\"○\",\"\")","v":""},{"$f":"IF(Step2!$Y28<>FALSE,\"○\",\"\")","v":""},{"$f":"IF(Step2!$Y50<>FALSE,\"○\",\"\")","v":""},{"$f":"IF(Step2!$Y72<>FALSE,\"○\",\"\")","v":""}]
[]
[]
[null,null,"２．避難に向けた様々な情報の収集",null,null,null,null,"台風がくる"]
[null,null,null,null,null,null,null,"５～3日前","2日前","1日前","当日"]
[null,null,null,null," 台風や降雨に関する気象情報の収集",null,null,{"$f":"IF(Step2!$Y7<>FALSE,\"○\",\"\")","v":""},{"$f":"IF(Step2!$Y29<>FALSE,\"○\",\"\")","v":""},{"$f":"IF(Step2!$Y51<>FALSE,\"○\",\"\")","v":""},{"$f":"IF(Step2!$Y73<>FALSE,\"○\",\"\")","v":""}]
[null,null,null,null," 避難に役立つ防災情報の収集",null,null,{"$f":"IF(Step2!$Y8<>FALSE,\"○\",\"\")","v":""},{"$f":"IF(Step2!$Y30<>FALSE,\"○\",\"\")","v":""},{"$f":"IF(Step2!$Y52<>FALSE,\"○\",\"\")","v":""},{"$f":"IF(Step2!$Y74<>FALSE,\"○\",\"\")","v":""}]
[null,null,null,null," 交通情報、被害情報の収集",null,null,{"$f":"IF(Step2!$Y9<>FALSE,\"○\",\"\")","v":""},{"$f":"IF(Step2!$Y31<>FALSE,\"○\",\"\")","v":""},{"$f":"IF(Step2!$Y53<>FALSE,\"○\",\"\")","v":""},{"$f":"IF(Step2!$Y75<>FALSE,\"○\",\"\")","v":""}]
[]
[]
[null,null,"３．家族と親類等への連絡",null,null,null,null,"台風がくる"]
[null,null,null,null,null,null,null,"５～3日前","2日前","1日前","当日"]
[null,null,null,null," 家族などへの連絡",null,null,{"$f":"IF(Step2!$Y10<>FALSE,\"○\",\"\")","v":""},{"$f":"IF(Step2!$Y32<>FALSE,\"○\",\"\")","v":""},{"$f":"IF(Step2!$Y54<>FALSE,\"○\",\"\")","v":""},{"$f":"IF(Step2!$Y76<>FALSE,\"○\",\"\")","v":""}]
[null,null,null,null," 親類・避難先への連絡",null,null,{"$f":"IF(Step2!$Y11<>FALSE,\"○\",\"\")","v":""},{"$f":"IF(Step2!$Y33<>FALSE,\"○\",\"\")","v":""},{"$f":"IF(Step2!$Y55<>FALSE,\"○\",\"\")","v":""},{"$f":"IF(Step2!$Y77<>FALSE,\"○\",\"\")","v":""}]
[]
[]
[null,null,"４．避難に向けた準備",null,null,null,null,"台風がくる"]
[null,null,null,null,null,null,null,"５～3日前","2日前","1日前","当日"]
[null,null,null,null," 自宅の風水害対策・被害軽減対策",null,null,{"$f":"IF(Step2!$Y12<>FALSE,\"○\",\"\")","v":""},{"$f":"IF(Step2!$Y34<>FALSE,\"○\",\"\")","v":""},{"$f":"IF(Step2!$Y56<>FALSE,\"○\",\"\")","v":""},{"$f":"IF(Step2!$Y78<>FALSE,\"○\",\"\")","v":""}]
[null,null,null,null," 大切なものの安全な階への移動",null,null,{"$f":"IF(Step2!$Y13<>FALSE,\"○\",\"\")","v":""},{"$f":"IF(Step2!$Y35<>FALSE,\"○\",\"\")","v":""},{"$f":"IF(Step2!$Y57<>FALSE,\"○\",\"\")","v":""},{"$f":"IF(Step2!$Y79<>FALSE,\"○\",\"\")","v":""}]
[null,null,null,null," 飲食物や生活用水の確保、停電対策",null,null,{"$f":"IF(Step2!$Y14<>FALSE,\"○\",\"\")","v":""},{"$f":"IF(Step2!$Y36<>FALSE,\"○\",\"\")","v":""},{"$f":"IF(Step2!$Y58<>FALSE,\"○\",\"\")","v":""},{"$f":"IF(Step2!$Y80<>FALSE,\"○\",\"\")","v":""}]
[null,null,null,null," 持ち出し品の詰め込み",null,null,{"$f":"IF(Step2!$Y15<>FALSE,\"○\",\"\")","v":""},{"$f":"IF(Step2!$Y37<>FALSE,\"○\",\"\")","v":""},{"$f":"IF(Step2!$Y59<>FALSE,\"○\",\"\")","v":""},{"$f":"IF(Step2!$Y81<>FALSE,\"○\",\"\")","v":""}]
[null,null,null,null," 火の元確認、戸締り",null,null,{"$f":"IF(Step2!$Y16<>FALSE,\"○\",\"\")","v":""},{"$f":"IF(Step2!$Y38<>FALSE,\"○\",\"\")","v":""},{"$f":"IF(Step2!$Y60<>FALSE,\"○\",\"\")","v":""},{"$f":"IF(Step2!$Y82<>FALSE,\"○\",\"\")","v":""}]
[null,null,null,null," 自家用車やバイクの避難",null,null,{"$f":"IF(Step2!$Y17<>FALSE,\"○\",\"\")","v":""},{"$f":"IF(Step2!$Y39<>FALSE,\"○\",\"\")","v":""},{"$f":"IF(Step2!$Y61<>FALSE,\"○\",\"\")","v":""},{"$f":"IF(Step2!$Y83<>FALSE,\"○\",\"\")","v":""}]
[null,null,null,null," ペット対応",null,null,{"$f":"IF(Step2!$Y18<>FALSE,\"○\",\"\")","v":""},{"$f":"IF(Step2!$Y40<>FALSE,\"○\",\"\")","v":""},{"$f":"IF(Step2!$Y62<>FALSE,\"○\",\"\")","v":""},{"$f":"IF(Step2!$Y84<>FALSE,\"○\",\"\")","v":""}]
[null,null,null,null," 携帯電話の充電など",null,null,{"$f":"IF(Step2!$Y19<>FALSE,\"○\",\"\")","v":""},{"$f":"IF(Step2!$Y41<>FALSE,\"○\",\"\")","v":""},{"$f":"IF(Step2!$Y63<>FALSE,\"○\",\"\")","v":""},{"$f":"IF(Step2!$Y85<>FALSE,\"○\",\"\")","v":""}]
[]
[]
[null,null,"５．地域での助け合い",null,null,null,null,"台風がくる"]
[null,null,null,null,null,null,null,"５～3日前","2日前","1日前","当日"]
[null,null,null,null," 地域内で声かけによる避難",null,null,{"$f":"IF(Step2!$Y20<>FALSE,\"○\",\"\")","v":""},{"$f":"IF(Step2!$Y42<>FALSE,\"○\",\"\")","v":""},{"$f":"IF(Step2!$Y64<>FALSE,\"○\",\"\")","v":""},{"$f":"IF(Step2!$Y86<>FALSE,\"○\",\"\")","v":""}]
[null,null,null,null," 避難時の要配慮者と支援者の関係把握",null,null,{"$f":"IF(Step2!$Y21<>FALSE,\"○\",\"\")","v":""},{"$f":"IF(Step2!$Y43<>FALSE,\"○\",\"\")","v":""},{"$f":"IF(Step2!$Y65<>FALSE,\"○\",\"\")","v":""},{"$f":"IF(Step2!$Y87<>FALSE,\"○\",\"\")","v":""}]
[]
[]
[null,null,"６．避難開始",null,null,null,null,"台風がくる"]
[null,null,null,null,null,null,null,"５～3日前","2日前","1日前","当日"]
[null,null,null,null," 要配慮者の避難開始",null,null,{"$f":"IF(Step2!$Y22<>FALSE,\"○\",\"\")","v":""},{"$f":"IF(Step2!$Y44<>FALSE,\"○\",\"\")","v":""},{"$f":"IF(Step2!$Y66<>FALSE,\"○\",\"\")","v":""},{"$f":"IF(Step2!$Y88<>FALSE,\"○\",\"\")","v":""}]
[null,null,null,null," 健常者の避難開始",null,null,{"$f":"IF(Step2!$Y23<>FALSE,\"○\",\"\")","v":""},{"$f":"IF(Step2!$Y45<>FALSE,\"○\",\"\")","v":""},{"$f":"IF(Step2!$Y67<>FALSE,\"○\",\"\")","v":""},{"$f":"IF(Step2!$Y89<>FALSE,\"○\",\"\")","v":""}]
[]
[null,"各時点の行動内容"]
[null,null,"●5～3日前"]
[null,null,{"$f":"IF(COUNTIF(Step3!$AX$1:$AX$41,$M52)<ROW(F1),\"\",INDEX(Step3!BC$1:BC$41,SMALL(IF(Step3!$AX$1:$AX$41=$M52,ROW(Step3!$AX$1:$AX$41)),ROW(F1))))","v":""},null,null,null,{"$f":"IF(COUNTIF(Step3!$AX$1:$AX$41,$M52)<ROW(G1),\"\",INDEX(Step3!BD$1:BD$41,SMALL(IF(Step3!$AX$1:$AX$41=$M52,ROW(Step3!$AX$1:$AX$41)),ROW(G1))))","v":""},null,null,null,null,null,1,{"$f":"IF(COUNTIF(Step3!$AX$1:$AX$41,$M52)<ROW(D1),\"\",INDEX(Step3!BA$1:BA$41,SMALL(IF(Step3!$AX$1:$AX$41=$M52,ROW(Step3!$AX$1:$AX$41)),ROW(D1))))","v":""}]
[null,null,{"$f":"IF(COUNTIF(Step3!$AX$1:$AX$41,$M53)<ROW(F2),\"\",INDEX(Step3!BC$1:BC$41,SMALL(IF(Step3!$AX$1:$AX$41=$M53,ROW(Step3!$AX$1:$AX$41)),ROW(F2))))","v":""},null,null,null,{"$f":"IF(COUNTIF(Step3!$AX$1:$AX$41,$M53)<ROW(G2),\"\",INDEX(Step3!BD$1:BD$41,SMALL(IF(Step3!$AX$1:$AX$41=$M53,ROW(Step3!$AX$1:$AX$41)),ROW(G2))))","v":""},null,null,null,null,null,1,{"$f":"IF(COUNTIF(Step3!$AX$1:$AX$41,$M53)<ROW(D2),\"\",INDEX(Step3!BA$1:BA$41,SMALL(IF(Step3!$AX$1:$AX$41=$M53,ROW(Step3!$AX$1:$AX$41)),ROW(D2))))","v":""}]
[null,null,{"$f":"IF(COUNTIF(Step3!$AX$1:$AX$41,$M54)<ROW(F3),\"\",INDEX(Step3!BC$1:BC$41,SMALL(IF(Step3!$AX$1:$AX$41=$M54,ROW(Step3!$AX$1:$AX$41)),ROW(F3))))","v":""},null,null,null,{"$f":"IF(COUNTIF(Step3!$AX$1:$AX$41,$M54)<ROW(G3),\"\",INDEX(Step3!BD$1:BD$41,SMALL(IF(Step3!$AX$1:$AX$41=$M54,ROW(Step3!$AX$1:$AX$41)),ROW(G3))))","v":""},null,null,null,null,null,1,{"$f":"IF(COUNTIF(Step3!$AX$1:$AX$41,$M54)<ROW(D3),\"\",INDEX(Step3!BA$1:BA$41,SMALL(IF(Step3!$AX$1:$AX$41=$M54,ROW(Step3!$AX$1:$AX$41)),ROW(D3))))","v":""}]
[null,null,{"$f":"IF(COUNTIF(Step3!$AX$1:$AX$41,$M55)<ROW(F4),\"\",INDEX(Step3!BC$1:BC$41,SMALL(IF(Step3!$AX$1:$AX$41=$M55,ROW(Step3!$AX$1:$AX$41)),ROW(F4))))","v":""},null,null,null,{"$f":"IF(COUNTIF(Step3!$AX$1:$AX$41,$M55)<ROW(G4),\"\",INDEX(Step3!BD$1:BD$41,SMALL(IF(Step3!$AX$1:$AX$41=$M55,ROW(Step3!$AX$1:$AX$41)),ROW(G4))))","v":""},null,null,null,null,null,1,{"$f":"IF(COUNTIF(Step3!$AX$1:$AX$41,$M55)<ROW(D4),\"\",INDEX(Step3!BA$1:BA$41,SMALL(IF(Step3!$AX$1:$AX$41=$M55,ROW(Step3!$AX$1:$AX$41)),ROW(D4))))","v":""}]
[]
[]
[null,null,"●2日前"]
[null,null,{"$f":"IF(COUNTIF(Step3!$AX$1:$AX$41,$M59)<ROW(F1),\"\",INDEX(Step3!BC$1:BC$41,SMALL(IF(Step3!$AX$1:$AX$41=$M59,ROW(Step3!$AX$1:$AX$41)),ROW(F1))))","v":""},null,null,null,{"$f":"IF(COUNTIF(Step3!$AX$1:$AX$41,$M59)<ROW(G1),\"\",INDEX(Step3!BD$1:BD$41,SMALL(IF(Step3!$AX$1:$AX$41=$M59,ROW(Step3!$AX$1:$AX$41)),ROW(G1))))","v":""},null,null,null,null,null,2,{"$f":"IF(COUNTIF(Step3!$AX$1:$AX$41,$M59)<ROW(D1),\"\",INDEX(Step3!BA$1:BA$41,SMALL(IF(Step3!$AX$1:$AX$41=$M59,ROW(Step3!$AX$1:$AX$41)),ROW(D1))))","v":""}]
[null,null,{"$f":"IF(COUNTIF(Step3!$AX$1:$AX$41,$M60)<ROW(F2),\"\",INDEX(Step3!BC$1:BC$41,SMALL(IF(Step3!$AX$1:$AX$41=$M60,ROW(Step3!$AX$1:$AX$41)),ROW(F2))))","v":""},null,null,null,{"$f":"IF(COUNTIF(Step3!$AX$1:$AX$41,$M60)<ROW(G2),\"\",INDEX(Step3!BD$1:BD$41,SMALL(IF(Step3!$AX$1:$AX$41=$M60,ROW(Step3!$AX$1:$AX$41)),ROW(G2))))","v":""},null,null,null,null,null,2,{"$f":"IF(COUNTIF(Step3!$AX$1:$AX$41,$M60)<ROW(D2),\"\",INDEX(Step3!BA$1:BA$41,SMALL(IF(Step3!$AX$1:$AX$41=$M60,ROW(Step3!$AX$1:$AX$41)),ROW(D2))))","v":""}]
[null,null,{"$f":"IF(COUNTIF(Step3!$AX$1:$AX$41,$M61)<ROW(F3),\"\",INDEX(Step3!BC$1:BC$41,SMALL(IF(Step3!$AX$1:$AX$41=$M61,ROW(Step3!$AX$1:$AX$41)),ROW(F3))))","v":""},null,null,null,{"$f":"IF(COUNTIF(Step3!$AX$1:$AX$41,$M61)<ROW(G3),\"\",INDEX(Step3!BD$1:BD$41,SMALL(IF(Step3!$AX$1:$AX$41=$M61,ROW(Step3!$AX$1:$AX$41)),ROW(G3))))","v":""},null,null,null,null,null,2,{"$f":"IF(COUNTIF(Step3!$AX$1:$AX$41,$M61)<ROW(D3),\"\",INDEX(Step3!BA$1:BA$41,SMALL(IF(Step3!$AX$1:$AX$41=$M61,ROW(Step3!$AX$1:$AX$41)),ROW(D3))))","v":""}]
[null,null,{"$f":"IF(COUNTIF(Step3!$AX$1:$AX$41,$M62)<ROW(F4),\"\",INDEX(Step3!BC$1:BC$41,SMALL(IF(Step3!$AX$1:$AX$41=$M62,ROW(Step3!$AX$1:$AX$41)),ROW(F4))))","v":""},null,null,null,{"$f":"IF(COUNTIF(Step3!$AX$1:$AX$41,$M62)<ROW(G4),\"\",INDEX(Step3!BD$1:BD$41,SMALL(IF(Step3!$AX$1:$AX$41=$M62,ROW(Step3!$AX$1:$AX$41)),ROW(G4))))","v":""},null,null,null,null,null,2,{"$f":"IF(COUNTIF(Step3!$AX$1:$AX$41,$M62)<ROW(D4),\"\",INDEX(Step3!BA$1:BA$41,SMALL(IF(Step3!$AX$1:$AX$41=$M62,ROW(Step3!$AX$1:$AX$41)),ROW(D4))))","v":""}]
[null,null,{"$f":"IF(COUNTIF(Step3!$AX$1:$AX$41,$M63)<ROW(F5),\"\",INDEX(Step3!BC$1:BC$41,SMALL(IF(Step3!$AX$1:$AX$41=$M63,ROW(Step3!$AX$1:$AX$41)),ROW(F5))))","v":""},null,null,null,{"$f":"IF(COUNTIF(Step3!$AX$1:$AX$41,$M63)<ROW(G5),\"\",INDEX(Step3!BD$1:BD$41,SMALL(IF(Step3!$AX$1:$AX$41=$M63,ROW(Step3!$AX$1:$AX$41)),ROW(G5))))","v":""},null,null,null,null,null,2,{"$f":"IF(COUNTIF(Step3!$AX$1:$AX$41,$M63)<ROW(D5),\"\",INDEX(Step3!BA$1:BA$41,SMALL(IF(Step3!$AX$1:$AX$41=$M63,ROW(Step3!$AX$1:$AX$41)),ROW(D5))))","v":""}]
[null,null,{"$f":"IF(COUNTIF(Step3!$AX$1:$AX$41,$M64)<ROW(F6),\"\",INDEX(Step3!BC$1:BC$41,SMALL(IF(Step3!$AX$1:$AX$41=$M64,ROW(Step3!$AX$1:$AX$41)),ROW(F6))))","v":""},null,null,null,{"$f":"IF(COUNTIF(Step3!$AX$1:$AX$41,$M64)<ROW(G6),\"\",INDEX(Step3!BD$1:BD$41,SMALL(IF(Step3!$AX$1:$AX$41=$M64,ROW(Step3!$AX$1:$AX$41)),ROW(G6))))","v":""},null,null,null,null,null,2,{"$f":"IF(COUNTIF(Step3!$AX$1:$AX$41,$M64)<ROW(D6),\"\",INDEX(Step3!BA$1:BA$41,SMALL(IF(Step3!$AX$1:$AX$41=$M64,ROW(Step3!$AX$1:$AX$41)),ROW(D6))))","v":""}]
[null,null,{"$f":"IF(COUNTIF(Step3!$AX$1:$AX$41,$M65)<ROW(F7),\"\",INDEX(Step3!BC$1:BC$41,SMALL(IF(Step3!$AX$1:$AX$41=$M65,ROW(Step3!$AX$1:$AX$41)),ROW(F7))))","v":""},null,null,null,{"$f":"IF(COUNTIF(Step3!$AX$1:$AX$41,$M65)<ROW(G7),\"\",INDEX(Step3!BD$1:BD$41,SMALL(IF(Step3!$AX$1:$AX$41=$M65,ROW(Step3!$AX$1:$AX$41)),ROW(G7))))","v":""},null,null,null,null,null,2,{"$f":"IF(COUNTIF(Step3!$AX$1:$AX$41,$M65)<ROW(D7),\"\",INDEX(Step3!BA$1:BA$41,SMALL(IF(Step3!$AX$1:$AX$41=$M65,ROW(Step3!$AX$1:$AX$41)),ROW(D7))))","v":""}]
[null,null,{"$f":"IF(COUNTIF(Step3!$AX$1:$AX$41,$M66)<ROW(F8),\"\",INDEX(Step3!BC$1:BC$41,SMALL(IF(Step3!$AX$1:$AX$41=$M66,ROW(Step3!$AX$1:$AX$41)),ROW(F8))))","v":""},null,null,null,{"$f":"IF(COUNTIF(Step3!$AX$1:$AX$41,$M66)<ROW(G8),\"\",INDEX(Step3!BD$1:BD$41,SMALL(IF(Step3!$AX$1:$AX$41=$M66,ROW(Step3!$AX$1:$AX$41)),ROW(G8))))","v":""},null,null,null,null,null,2,{"$f":"IF(COUNTIF(Step3!$AX$1:$AX$41,$M66)<ROW(D8),\"\",INDEX(Step3!BA$1:BA$41,SMALL(IF(Step3!$AX$1:$AX$41=$M66,ROW(Step3!$AX$1:$AX$41)),ROW(D8))))","v":""}]
[null,null,{"$f":"IF(COUNTIF(Step3!$AX$1:$AX$41,$M67)<ROW(F9),\"\",INDEX(Step3!BC$1:BC$41,SMALL(IF(Step3!$AX$1:$AX$41=$M67,ROW(Step3!$AX$1:$AX$41)),ROW(F9))))","v":""},null,null,null,{"$f":"IF(COUNTIF(Step3!$AX$1:$AX$41,$M67)<ROW(G9),\"\",INDEX(Step3!BD$1:BD$41,SMALL(IF(Step3!$AX$1:$AX$41=$M67,ROW(Step3!$AX$1:$AX$41)),ROW(G9))))","v":""},null,null,null,null,null,2,{"$f":"IF(COUNTIF(Step3!$AX$1:$AX$41,$M67)<ROW(D9),\"\",INDEX(Step3!BA$1:BA$41,SMALL(IF(Step3!$AX$1:$AX$41=$M67,ROW(Step3!$AX$1:$AX$41)),ROW(D9))))","v":""}]
[null,null,{"$f":"IF(COUNTIF(Step3!$AX$1:$AX$41,$M68)<ROW(F10),\"\",INDEX(Step3!BC$1:BC$41,SMALL(IF(Step3!$AX$1:$AX$41=$M68,ROW(Step3!$AX$1:$AX$41)),ROW(F10))))","v":""},null,null,null,{"$f":"IF(COUNTIF(Step3!$AX$1:$AX$41,$M68)<ROW(G10),\"\",INDEX(Step3!BD$1:BD$41,SMALL(IF(Step3!$AX$1:$AX$41=$M68,ROW(Step3!$AX$1:$AX$41)),ROW(G10))))","v":""},null,null,null,null,null,2,{"$f":"IF(COUNTIF(Step3!$AX$1:$AX$41,$M68)<ROW(D10),\"\",INDEX(Step3!BA$1:BA$41,SMALL(IF(Step3!$AX$1:$AX$41=$M68,ROW(Step3!$AX$1:$AX$41)),ROW(D10))))","v":""}]
[]
[]
[null,null,"●1日前"]
[null,null,{"$f":"IF(COUNTIF(Step3!$AX$1:$AX$41,$M72)<ROW(F1),\"\",INDEX(Step3!BC$1:BC$41,SMALL(IF(Step3!$AX$1:$AX$41=$M72,ROW(Step3!$AX$1:$AX$41)),ROW(F1))))","v":""},null,null,null,{"$f":"IF(COUNTIF(Step3!$AX$1:$AX$41,$M72)<ROW(G1),\"\",INDEX(Step3!BD$1:BD$41,SMALL(IF(Step3!$AX$1:$AX$41=$M72,ROW(Step3!$AX$1:$AX$41)),ROW(G1))))","v":""},null,null,null,null,null,3,{"$f":"IF(COUNTIF(Step3!$AX$1:$AX$41,$M72)<ROW(D1),\"\",INDEX(Step3!BA$1:BA$41,SMALL(IF(Step3!$AX$1:$AX$41=$M72,ROW(Step3!$AX$1:$AX$41)),ROW(D1))))","v":""}]
[null,null,{"$f":"IF(COUNTIF(Step3!$AX$1:$AX$41,$M73)<ROW(F2),\"\",INDEX(Step3!BC$1:BC$41,SMALL(IF(Step3!$AX$1:$AX$41=$M73,ROW(Step3!$AX$1:$AX$41)),ROW(F2))))","v":""},null,null,null,{"$f":"IF(COUNTIF(Step3!$AX$1:$AX$41,$M73)<ROW(G2),\"\",INDEX(Step3!BD$1:BD$41,SMALL(IF(Step3!$AX$1:$AX$41=$M73,ROW(Step3!$AX$1:$AX$41)),ROW(G2))))","v":""},null,null,null,null,null,3,{"$f":"IF(COUNTIF(Step3!$AX$1:$AX$41,$M73)<ROW(D2),\"\",INDEX(Step3!BA$1:BA$41,SMALL(IF(Step3!$AX$1:$AX$41=$M73,ROW(Step3!$AX$1:$AX$41)),ROW(D2))))","v":""}]
[null,null,{"$f":"IF(COUNTIF(Step3!$AX$1:$AX$41,$M74)<ROW(F3),\"\",INDEX(Step3!BC$1:BC$41,SMALL(IF(Step3!$AX$1:$AX$41=$M74,ROW(Step3!$AX$1:$AX$41)),ROW(F3))))","v":""},null,null,null,{"$f":"IF(COUNTIF(Step3!$AX$1:$AX$41,$M74)<ROW(G3),\"\",INDEX(Step3!BD$1:BD$41,SMALL(IF(Step3!$AX$1:$AX$41=$M74,ROW(Step3!$AX$1:$AX$41)),ROW(G3))))","v":""},null,null,null,null,null,3,{"$f":"IF(COUNTIF(Step3!$AX$1:$AX$41,$M74)<ROW(D3),\"\",INDEX(Step3!BA$1:BA$41,SMALL(IF(Step3!$AX$1:$AX$41=$M74,ROW(Step3!$AX$1:$AX$41)),ROW(D3))))","v":""}]
[null,null,{"$f":"IF(COUNTIF(Step3!$AX$1:$AX$41,$M75)<ROW(F4),\"\",INDEX(Step3!BC$1:BC$41,SMALL(IF(Step3!$AX$1:$AX$41=$M75,ROW(Step3!$AX$1:$AX$41)),ROW(F4))))","v":""},null,null,null,{"$f":"IF(COUNTIF(Step3!$AX$1:$AX$41,$M75)<ROW(G4),\"\",INDEX(Step3!BD$1:BD$41,SMALL(IF(Step3!$AX$1:$AX$41=$M75,ROW(Step3!$AX$1:$AX$41)),ROW(G4))))","v":""},null,null,null,null,null,3,{"$f":"IF(COUNTIF(Step3!$AX$1:$AX$41,$M75)<ROW(D4),\"\",INDEX(Step3!BA$1:BA$41,SMALL(IF(Step3!$AX$1:$AX$41=$M75,ROW(Step3!$AX$1:$AX$41)),ROW(D4))))","v":""}]
[null,null,{"$f":"IF(COUNTIF(Step3!$AX$1:$AX$41,$M76)<ROW(F5),\"\",INDEX(Step3!BC$1:BC$41,SMALL(IF(Step3!$AX$1:$AX$41=$M76,ROW(Step3!$AX$1:$AX$41)),ROW(F5))))","v":""},null,null,null,{"$f":"IF(COUNTIF(Step3!$AX$1:$AX$41,$M76)<ROW(G5),\"\",INDEX(Step3!BD$1:BD$41,SMALL(IF(Step3!$AX$1:$AX$41=$M76,ROW(Step3!$AX$1:$AX$41)),ROW(G5))))","v":""},null,null,null,null,null,3,{"$f":"IF(COUNTIF(Step3!$AX$1:$AX$41,$M76)<ROW(D5),\"\",INDEX(Step3!BA$1:BA$41,SMALL(IF(Step3!$AX$1:$AX$41=$M76,ROW(Step3!$AX$1:$AX$41)),ROW(D5))))","v":""}]
[null,null,{"$f":"IF(COUNTIF(Step3!$AX$1:$AX$41,$M77)<ROW(F6),\"\",INDEX(Step3!BC$1:BC$41,SMALL(IF(Step3!$AX$1:$AX$41=$M77,ROW(Step3!$AX$1:$AX$41)),ROW(F6))))","v":""},null,null,null,{"$f":"IF(COUNTIF(Step3!$AX$1:$AX$41,$M77)<ROW(G6),\"\",INDEX(Step3!BD$1:BD$41,SMALL(IF(Step3!$AX$1:$AX$41=$M77,ROW(Step3!$AX$1:$AX$41)),ROW(G6))))","v":""},null,null,null,null,null,3,{"$f":"IF(COUNTIF(Step3!$AX$1:$AX$41,$M77)<ROW(D6),\"\",INDEX(Step3!BA$1:BA$41,SMALL(IF(Step3!$AX$1:$AX$41=$M77,ROW(Step3!$AX$1:$AX$41)),ROW(D6))))","v":""}]
[null,null,{"$f":"IF(COUNTIF(Step3!$AX$1:$AX$41,$M78)<ROW(F7),\"\",INDEX(Step3!BC$1:BC$41,SMALL(IF(Step3!$AX$1:$AX$41=$M78,ROW(Step3!$AX$1:$AX$41)),ROW(F7))))","v":""},null,null,null,{"$f":"IF(COUNTIF(Step3!$AX$1:$AX$41,$M78)<ROW(G7),\"\",INDEX(Step3!BD$1:BD$41,SMALL(IF(Step3!$AX$1:$AX$41=$M78,ROW(Step3!$AX$1:$AX$41)),ROW(G7))))","v":""},null,null,null,null,null,3,{"$f":"IF(COUNTIF(Step3!$AX$1:$AX$41,$M78)<ROW(D7),\"\",INDEX(Step3!BA$1:BA$41,SMALL(IF(Step3!$AX$1:$AX$41=$M78,ROW(Step3!$AX$1:$AX$41)),ROW(D7))))","v":""}]
[null,null,{"$f":"IF(COUNTIF(Step3!$AX$1:$AX$41,$M79)<ROW(F8),\"\",INDEX(Step3!BC$1:BC$41,SMALL(IF(Step3!$AX$1:$AX$41=$M79,ROW(Step3!$AX$1:$AX$41)),ROW(F8))))","v":""},null,null,null,{"$f":"IF(COUNTIF(Step3!$AX$1:$AX$41,$M79)<ROW(G8),\"\",INDEX(Step3!BD$1:BD$41,SMALL(IF(Step3!$AX$1:$AX$41=$M79,ROW(Step3!$AX$1:$AX$41)),ROW(G8))))","v":""},null,null,null,null,null,3,{"$f":"IF(COUNTIF(Step3!$AX$1:$AX$41,$M79)<ROW(D8),\"\",INDEX(Step3!BA$1:BA$41,SMALL(IF(Step3!$AX$1:$AX$41=$M79,ROW(Step3!$AX$1:$AX$41)),ROW(D8))))","v":""}]
[null,null,{"$f":"IF(COUNTIF(Step3!$AX$1:$AX$41,$M80)<ROW(F9),\"\",INDEX(Step3!BC$1:BC$41,SMALL(IF(Step3!$AX$1:$AX$41=$M80,ROW(Step3!$AX$1:$AX$41)),ROW(F9))))","v":""},null,null,null,{"$f":"IF(COUNTIF(Step3!$AX$1:$AX$41,$M80)<ROW(G9),\"\",INDEX(Step3!BD$1:BD$41,SMALL(IF(Step3!$AX$1:$AX$41=$M80,ROW(Step3!$AX$1:$AX$41)),ROW(G9))))","v":""},null,null,null,null,null,3,{"$f":"IF(COUNTIF(Step3!$AX$1:$AX$41,$M80)<ROW(D9),\"\",INDEX(Step3!BA$1:BA$41,SMALL(IF(Step3!$AX$1:$AX$41=$M80,ROW(Step3!$AX$1:$AX$41)),ROW(D9))))","v":""}]
[null,null,{"$f":"IF(COUNTIF(Step3!$AX$1:$AX$41,$M81)<ROW(F10),\"\",INDEX(Step3!BC$1:BC$41,SMALL(IF(Step3!$AX$1:$AX$41=$M81,ROW(Step3!$AX$1:$AX$41)),ROW(F10))))","v":""},null,null,null,{"$f":"IF(COUNTIF(Step3!$AX$1:$AX$41,$M81)<ROW(G10),\"\",INDEX(Step3!BD$1:BD$41,SMALL(IF(Step3!$AX$1:$AX$41=$M81,ROW(Step3!$AX$1:$AX$41)),ROW(G10))))","v":""},null,null,null,null,null,3,{"$f":"IF(COUNTIF(Step3!$AX$1:$AX$41,$M81)<ROW(D10),\"\",INDEX(Step3!BA$1:BA$41,SMALL(IF(Step3!$AX$1:$AX$41=$M81,ROW(Step3!$AX$1:$AX$41)),ROW(D10))))","v":""}]
[null,null,{"$f":"IF(COUNTIF(Step3!$AX$1:$AX$41,$M82)<ROW(F11),\"\",INDEX(Step3!BC$1:BC$41,SMALL(IF(Step3!$AX$1:$AX$41=$M82,ROW(Step3!$AX$1:$AX$41)),ROW(F11))))","v":""},null,null,null,{"$f":"IF(COUNTIF(Step3!$AX$1:$AX$41,$M82)<ROW(G11),\"\",INDEX(Step3!BD$1:BD$41,SMALL(IF(Step3!$AX$1:$AX$41=$M82,ROW(Step3!$AX$1:$AX$41)),ROW(G11))))","v":""},null,null,null,null,null,3,{"$f":"IF(COUNTIF(Step3!$AX$1:$AX$41,$M82)<ROW(D11),\"\",INDEX(Step3!BA$1:BA$41,SMALL(IF(Step3!$AX$1:$AX$41=$M82,ROW(Step3!$AX$1:$AX$41)),ROW(D11))))","v":""}]
[null,null,{"$f":"IF(COUNTIF(Step3!$AX$1:$AX$41,$M83)<ROW(F12),\"\",INDEX(Step3!BC$1:BC$41,SMALL(IF(Step3!$AX$1:$AX$41=$M83,ROW(Step3!$AX$1:$AX$41)),ROW(F12))))","v":""},null,null,null,{"$f":"IF(COUNTIF(Step3!$AX$1:$AX$41,$M83)<ROW(G12),\"\",INDEX(Step3!BD$1:BD$41,SMALL(IF(Step3!$AX$1:$AX$41=$M83,ROW(Step3!$AX$1:$AX$41)),ROW(G12))))","v":""},null,null,null,null,null,3,{"$f":"IF(COUNTIF(Step3!$AX$1:$AX$41,$M83)<ROW(D12),\"\",INDEX(Step3!BA$1:BA$41,SMALL(IF(Step3!$AX$1:$AX$41=$M83,ROW(Step3!$AX$1:$AX$41)),ROW(D12))))","v":""}]
[null,null,{"$f":"IF(COUNTIF(Step3!$AX$1:$AX$41,$M84)<ROW(F13),\"\",INDEX(Step3!BC$1:BC$41,SMALL(IF(Step3!$AX$1:$AX$41=$M84,ROW(Step3!$AX$1:$AX$41)),ROW(F13))))","v":""},null,null,null,{"$f":"IF(COUNTIF(Step3!$AX$1:$AX$41,$M84)<ROW(G13),\"\",INDEX(Step3!BD$1:BD$41,SMALL(IF(Step3!$AX$1:$AX$41=$M84,ROW(Step3!$AX$1:$AX$41)),ROW(G13))))","v":""},null,null,null,null,null,3,{"$f":"IF(COUNTIF(Step3!$AX$1:$AX$41,$M84)<ROW(D13),\"\",INDEX(Step3!BA$1:BA$41,SMALL(IF(Step3!$AX$1:$AX$41=$M84,ROW(Step3!$AX$1:$AX$41)),ROW(D13))))","v":""}]
[]
[]
[null,null,"●当日"]
[null,null,{"$f":"IF(COUNTIF(Step3!$AX$1:$AX$41,$M88)<ROW(F1),\"\",INDEX(Step3!BC$1:BC$41,SMALL(IF(Step3!$AX$1:$AX$41=$M88,ROW(Step3!$AX$1:$AX$41)),ROW(F1))))","v":""},null,null,null,{"$f":"IF(COUNTIF(Step3!$AX$1:$AX$41,$M88)<ROW(G1),\"\",INDEX(Step3!BD$1:BD$41,SMALL(IF(Step3!$AX$1:$AX$41=$M88,ROW(Step3!$AX$1:$AX$41)),ROW(G1))))","v":""},null,null,null,null,null,4,{"$f":"IF(COUNTIF(Step3!$AX$1:$AX$41,$M88)<ROW(D1),\"\",INDEX(Step3!BA$1:BA$41,SMALL(IF(Step3!$AX$1:$AX$41=$M88,ROW(Step3!$AX$1:$AX$41)),ROW(D1))))","v":""}]
[null,null,{"$f":"IF(COUNTIF(Step3!$AX$1:$AX$41,$M89)<ROW(F2),\"\",INDEX(Step3!BC$1:BC$41,SMALL(IF(Step3!$AX$1:$AX$41=$M89,ROW(Step3!$AX$1:$AX$41)),ROW(F2))))","v":""},null,null,null,{"$f":"IF(COUNTIF(Step3!$AX$1:$AX$41,$M89)<ROW(G2),\"\",INDEX(Step3!BD$1:BD$41,SMALL(IF(Step3!$AX$1:$AX$41=$M89,ROW(Step3!$AX$1:$AX$41)),ROW(G2))))","v":""},null,null,null,null,null,4,{"$f":"IF(COUNTIF(Step3!$AX$1:$AX$41,$M89)<ROW(D2),\"\",INDEX(Step3!BA$1:BA$41,SMALL(IF(Step3!$AX$1:$AX$41=$M89,ROW(Step3!$AX$1:$AX$41)),ROW(D2))))","v":""}]
[null,null,{"$f":"IF(COUNTIF(Step3!$AX$1:$AX$41,$M90)<ROW(F3),\"\",INDEX(Step3!BC$1:BC$41,SMALL(IF(Step3!$AX$1:$AX$41=$M90,ROW(Step3!$AX$1:$AX$41)),ROW(F3))))","v":""},null,null,null,{"$f":"IF(COUNTIF(Step3!$AX$1:$AX$41,$M90)<ROW(G3),\"\",INDEX(Step3!BD$1:BD$41,SMALL(IF(Step3!$AX$1:$AX$41=$M90,ROW(Step3!$AX$1:$AX$41)),ROW(G3))))","v":""},null,null,null,null,null,4,{"$f":"IF(COUNTIF(Step3!$AX$1:$AX$41,$M90)<ROW(D3),\"\",INDEX(Step3!BA$1:BA$41,SMALL(IF(Step3!$AX$1:$AX$41=$M90,ROW(Step3!$AX$1:$AX$41)),ROW(D3))))","v":""}]
[null,null,{"$f":"IF(COUNTIF(Step3!$AX$1:$AX$41,$M91)<ROW(F4),\"\",INDEX(Step3!BC$1:BC$41,SMALL(IF(Step3!$AX$1:$AX$41=$M91,ROW(Step3!$AX$1:$AX$41)),ROW(F4))))","v":""},null,null,null,{"$f":"IF(COUNTIF(Step3!$AX$1:$AX$41,$M91)<ROW(G4),\"\",INDEX(Step3!BD$1:BD$41,SMALL(IF(Step3!$AX$1:$AX$41=$M91,ROW(Step3!$AX$1:$AX$41)),ROW(G4))))","v":""},null,null,null,null,null,4,{"$f":"IF(COUNTIF(Step3!$AX$1:$AX$41,$M91)<ROW(D4),\"\",INDEX(Step3!BA$1:BA$41,SMALL(IF(Step3!$AX$1:$AX$41=$M91,ROW(Step3!$AX$1:$AX$41)),ROW(D4))))","v":""}]
[null,null,{"$f":"IF(COUNTIF(Step3!$AX$1:$AX$41,$M92)<ROW(F5),\"\",INDEX(Step3!BC$1:BC$41,SMALL(IF(Step3!$AX$1:$AX$41=$M92,ROW(Step3!$AX$1:$AX$41)),ROW(F5))))","v":""},null,null,null,{"$f":"IF(COUNTIF(Step3!$AX$1:$AX$41,$M92)<ROW(G5),\"\",INDEX(Step3!BD$1:BD$41,SMALL(IF(Step3!$AX$1:$AX$41=$M92,ROW(Step3!$AX$1:$AX$41)),ROW(G5))))","v":""},null,null,null,null,null,4,{"$f":"IF(COUNTIF(Step3!$AX$1:$AX$41,$M92)<ROW(D5),\"\",INDEX(Step3!BA$1:BA$41,SMALL(IF(Step3!$AX$1:$AX$41=$M92,ROW(Step3!$AX$1:$AX$41)),ROW(D5))))","v":""}]
[null,null,{"$f":"IF(COUNTIF(Step3!$AX$1:$AX$41,$M93)<ROW(F6),\"\",INDEX(Step3!BC$1:BC$41,SMALL(IF(Step3!$AX$1:$AX$41=$M93,ROW(Step3!$AX$1:$AX$41)),ROW(F6))))","v":""},null,null,null,{"$f":"IF(COUNTIF(Step3!$AX$1:$AX$41,$M93)<ROW(G6),\"\",INDEX(Step3!BD$1:BD$41,SMALL(IF(Step3!$AX$1:$AX$41=$M93,ROW(Step3!$AX$1:$AX$41)),ROW(G6))))","v":""},null,null,null,null,null,4,{"$f":"IF(COUNTIF(Step3!$AX$1:$AX$41,$M93)<ROW(D6),\"\",INDEX(Step3!BA$1:BA$41,SMALL(IF(Step3!$AX$1:$AX$41=$M93,ROW(Step3!$AX$1:$AX$41)),ROW(D6))))","v":""}]
[null,null,{"$f":"IF(COUNTIF(Step3!$AX$1:$AX$41,$M94)<ROW(F7),\"\",INDEX(Step3!BC$1:BC$41,SMALL(IF(Step3!$AX$1:$AX$41=$M94,ROW(Step3!$AX$1:$AX$41)),ROW(F7))))","v":""},null,null,null,{"$f":"IF(COUNTIF(Step3!$AX$1:$AX$41,$M94)<ROW(G7),\"\",INDEX(Step3!BD$1:BD$41,SMALL(IF(Step3!$AX$1:$AX$41=$M94,ROW(Step3!$AX$1:$AX$41)),ROW(G7))))","v":""},null,null,null,null,null,4,{"$f":"IF(COUNTIF(Step3!$AX$1:$AX$41,$M94)<ROW(D7),\"\",INDEX(Step3!BA$1:BA$41,SMALL(IF(Step3!$AX$1:$AX$41=$M94,ROW(Step3!$AX$1:$AX$41)),ROW(D7))))","v":""}]
[null,null,null,{"$f":"IF(COUNTIF(Step3!$AX$1:$AX$41,$M95)<ROW(F8),\"\",INDEX(Step3!BC$1:BC$41,SMALL(IF(Step3!$AX$1:$AX$41=$M95,ROW(Step3!$AX$1:$AX$41)),ROW(F8))))","v":""},null,null,{"$f":"IF(COUNTIF(Step3!$AX$1:$AX$41,$M95)<ROW(G8),\"\",INDEX(Step3!BD$1:BD$41,SMALL(IF(Step3!$AX$1:$AX$41=$M95,ROW(Step3!$AX$1:$AX$41)),ROW(G8))))","v":""},null,null,null,null,null,4,{"$f":"IF(COUNTIF(Step3!$AX$1:$AX$41,$M95)<ROW(D8),\"\",INDEX(Step3!BA$1:BA$41,SMALL(IF(Step3!$AX$1:$AX$41=$M95,ROW(Step3!$AX$1:$AX$41)),ROW(D8))))","v":""}]

{"sheet":"印刷（マイタイムライン）","index":6,"n_rows":41,"n_cols":10,"rows_kept":41,"cut":false,"hidden":false,"merged":[[30,2,30,4],[31,2,31,4],[32,2,32,4],[23,2,23,4],[24,2,24,4],[27,2,27,4],[28,2,28,4],[29,2,29,4],[33,2,33,4],[34,2,34,4],[35,2,35,4],[36,2,36,4],[37,2,37,4],[19,2,19,4],[22,2,22,4],[20,2,21,4],[10,2,10,4],[5,2,5,4],[9,2,9,4],[5,9,5,10],[6,2,6,4],[7,2,7,4],[8,2,8,4],[6,9,6,10],[7,9,7,10],[8,9,8,10],[13,9,13,10],[14,9,14,10],[15,9,15,10],[9,9,9,10],[10,9,10,10],[11,9,11,10],[12,9,12,10],[16,9,16,10],[17,9,17,10],[18,9,18,10],[19,9,19,10],[20,9,20,10],[21,9,21,10],[22,9,22,10],[23,9,23,10],[24,9,24,10],[25,9,25,10],[26,9,26,10],[27,9,27,10],[28,9,28,10],[29,9,29,10],[30,9,30,10],[31,9,31,10],[32,9,32,10],[33,9,33,10],[34,9,34,10],[35,9,35,10],[36,9,36,10],[37,9,37,10],[38,9,38,10],[39,9,39,10],[42,2,44,3],[42,4,44,8],[42,9,45,10],[40,9,40,10],[38,2,38,4],[39,2,39,4],[40,2,40,4]]}
[]
[]
[]
[]
[]
[]
[null,1,"5～3日前",null,null,null,{"$f":"IF(COUNTIF(Step3!$AX$1:$AX$41,'印刷（マイタイムライン）'!$B$7)<ROW(D1),\"\",INDEX(Step3!BA$1:BA$41,SMALL(IF(Step3!$AX$1:$AX$41='印刷（マイタイムライン）'!$B$7,ROW(Step3!$AX$1:$AX$41)),ROW(D1))))","v":""},{"$f":"IF(COUNTIF(Step3!$AX$1:$AX$41,'印刷（マイタイムライン）'!$B$7)<ROW(F1),\"\",INDEX(Step3!BC$1:BC$41,SMALL(IF(Step3!$AX$1:$AX$41='印刷（マイタイムライン）'!$B$7,ROW(Step3!$AX$1:$AX$41)),ROW(F1))))","v":""},{"$f":"IF(COUNTIF(Step3!$AX$1:$AX$41,'印刷（マイタイムライン）'!$B$7)<ROW(G1),\"\",INDEX(Step3!BD$1:BD$41,SMALL(IF(Step3!$AX$1:$AX$41='印刷（マイタイムライン）'!$B$7,ROW(Step3!$AX$1:$AX$41)),ROW(G1))))","v":""},"■"]
[null,1,null,null,null,null,{"$f":"IF(COUNTIF(Step3!$AX$1:$AX$41,'印刷（マイタイムライン）'!$B$7)<ROW(D2),\"\",INDEX(Step3!BA$1:BA$41,SMALL(IF(Step3!$AX$1:$AX$41='印刷（マイタイムライン）'!$B$7,ROW(Step3!$AX$1:$AX$41)),ROW(D2))))","v":""},{"$f":"IF(COUNTIF(Step3!$AX$1:$AX$41,'印刷（マイタイムライン）'!$B$7)<ROW(F2),\"\",INDEX(Step3!BC$1:BC$41,SMALL(IF(Step3!$AX$1:$AX$41='印刷（マイタイムライン）'!$B$7,ROW(Step3!$AX$1:$AX$41)),ROW(F2))))","v":""},{"$f":"IF(COUNTIF(Step3!$AX$1:$AX$41,'印刷（マイタイムライン）'!$B$7)<ROW(G2),\"\",INDEX(Step3!BD$1:BD$41,SMALL(IF(Step3!$AX$1:$AX$41='印刷（マイタイムライン）'!$B$7,ROW(Step3!$AX$1:$AX$41)),ROW(G2))))","v":""},"■"]
[null,1,null,null,null,null,{"$f":"IF(COUNTIF(Step3!$AX$1:$AX$41,'印刷（マイタイムライン）'!$B$7)<ROW(D3),\"\",INDEX(Step3!BA$1:BA$41,SMALL(IF(Step3!$AX$1:$AX$41='印刷（マイタイムライン）'!$B$7,ROW(Step3!$AX$1:$AX$41)),ROW(D3))))","v":""},{"$f":"IF(COUNTIF(Step3!$AX$1:$AX$41,'印刷（マイタイムライン）'!$B$7)<ROW(F3),\"\",INDEX(Step3!BC$1:BC$41,SMALL(IF(Step3!$AX$1:$AX$41='印刷（マイタイムライン）'!$B$7,ROW(Step3!$AX$1:$AX$41)),ROW(F3))))","v":""},{"$f":"IF(COUNTIF(Step3!$AX$1:$AX$41,'印刷（マイタイムライン）'!$B$7)<ROW(G3),\"\",INDEX(Step3!BD$1:BD$41,SMALL(IF(Step3!$AX$1:$AX$41='印刷（マイタイムライン）'!$B$7,ROW(Step3!$AX$1:$AX$41)),ROW(G3))))","v":""},"■"]
[null,1,null,null,null,null,{"$f":"IF(COUNTIF(Step3!$AX$1:$AX$41,'印刷（マイタイムライン）'!$B$7)<ROW(D4),\"\",INDEX(Step3!BA$1:BA$41,SMALL(IF(Step3!$AX$1:$AX$41='印刷（マイタイムライン）'!$B$7,ROW(Step3!$AX$1:$AX$41)),ROW(D4))))","v":""},{"$f":"IF(COUNTIF(Step3!$AX$1:$AX$41,'印刷（マイタイムライン）'!$B$7)<ROW(F4),\"\",INDEX(Step3!BC$1:BC$41,SMALL(IF(Step3!$AX$1:$AX$41='印刷（マイタイムライン）'!$B$7,ROW(Step3!$AX$1:$AX$41)),ROW(F4))))","v":""},{"$f":"IF(COUNTIF(Step3!$AX$1:$AX$41,'印刷（マイタイムライン）'!$B$7)<ROW(G4),\"\",INDEX(Step3!BD$1:BD$41,SMALL(IF(Step3!$AX$1:$AX$41='印刷（マイタイムライン）'!$B$7,ROW(Step3!$AX$1:$AX$41)),ROW(G4))))","v":""},"■"]
[null,2,"2日前",null,null,null,{"$f":"IF(COUNTIF(Step3!$AX$1:$AX$41,'印刷（マイタイムライン）'!$B$11)<ROW(D1),\"\",INDEX(Step3!BA$1:BA$41,SMALL(IF(Step3!$AX$1:$AX$41='印刷（マイタイムライン）'!$B$11,ROW(Step3!$AX$1:$AX$41)),ROW(D1))))","v":""},{"$f":"IF(COUNTIF(Step3!$AX$1:$AX$41,'印刷（マイタイムライン）'!$B$11)<ROW(F1),\"\",INDEX(Step3!BC$1:BC$41,SMALL(IF(Step3!$AX$1:$AX$41='印刷（マイタイムライン）'!$B$11,ROW(Step3!$AX$1:$AX$41)),ROW(F1))))","v":""},{"$f":"IF(COUNTIF(Step3!$AX$1:$AX$41,'印刷（マイタイムライン）'!$B$11)<ROW(G1),\"\",INDEX(Step3!BD$1:BD$41,SMALL(IF(Step3!$AX$1:$AX$41='印刷（マイタイムライン）'!$B$11,ROW(Step3!$AX$1:$AX$41)),ROW(G1))))","v":""},"■"]
[null,2,null,null,null,null,{"$f":"IF(COUNTIF(Step3!$AX$1:$AX$41,'印刷（マイタイムライン）'!$B$11)<ROW(D2),\"\",INDEX(Step3!BA$1:BA$41,SMALL(IF(Step3!$AX$1:$AX$41='印刷（マイタイムライン）'!$B$11,ROW(Step3!$AX$1:$AX$41)),ROW(D2))))","v":""},{"$f":"IF(COUNTIF(Step3!$AX$1:$AX$41,'印刷（マイタイムライン）'!$B$11)<ROW(F2),\"\",INDEX(Step3!BC$1:BC$41,SMALL(IF(Step3!$AX$1:$AX$41='印刷（マイタイムライン）'!$B$11,ROW(Step3!$AX$1:$AX$41)),ROW(F2))))","v":""},{"$f":"IF(COUNTIF(Step3!$AX$1:$AX$41,'印刷（マイタイムライン）'!$B$11)<ROW(G2),\"\",INDEX(Step3!BD$1:BD$41,SMALL(IF(Step3!$AX$1:$AX$41='印刷（マイタイムライン）'!$B$11,ROW(Step3!$AX$1:$AX$41)),ROW(G2))))","v":""},"■"]
[null,2,null,null,null,null,{"$f":"IF(COUNTIF(Step3!$AX$1:$AX$41,'印刷（マイタイムライン）'!$B$11)<ROW(D3),\"\",INDEX(Step3!BA$1:BA$41,SMALL(IF(Step3!$AX$1:$AX$41='印刷（マイタイムライン）'!$B$11,ROW(Step3!$AX$1:$AX$41)),ROW(D3))))","v":""},{"$f":"IF(COUNTIF(Step3!$AX$1:$AX$41,'印刷（マイタイムライン）'!$B$11)<ROW(F3),\"\",INDEX(Step3!BC$1:BC$41,SMALL(IF(Step3!$AX$1:$AX$41='印刷（マイタイムライン）'!$B$11,ROW(Step3!$AX$1:$AX$41)),ROW(F3))))","v":""},{"$f":"IF(COUNTIF(Step3!$AX$1:$AX$41,'印刷（マイタイムライン）'!$B$11)<ROW(G3),\"\",INDEX(Step3!BD$1:BD$41,SMALL(IF(Step3!$AX$1:$AX$41='印刷（マイタイムライン）'!$B$11,ROW(Step3!$AX$1:$AX$41)),ROW(G3))))","v":""},"■"]
[null,2,null,null,null,null,{"$f":"IF(COUNTIF(Step3!$AX$1:$AX$41,'印刷（マイタイムライン）'!$B$11)<ROW(D4),\"\",INDEX(Step3!BA$1:BA$41,SMALL(IF(Step3!$AX$1:$AX$41='印刷（マイタイムライン）'!$B$11,ROW(Step3!$AX$1:$AX$41)),ROW(D4))))","v":""},{"$f":"IF(COUNTIF(Step3!$AX$1:$AX$41,'印刷（マイタイムライン）'!$B$11)<ROW(F4),\"\",INDEX(Step3!BC$1:BC$41,SMALL(IF(Step3!$AX$1:$AX$41='印刷（マイタイムライン）'!$B$11,ROW(Step3!$AX$1:$AX$41)),ROW(F4))))","v":""},{"$f":"IF(COUNTIF(Step3!$AX$1:$AX$41,'印刷（マイタイムライン）'!$B$11)<ROW(G4),\"\",INDEX(Step3!BD$1:BD$41,SMALL(IF(Step3!$AX$1:$AX$41='印刷（マイタイムライン）'!$B$11,ROW(Step3!$AX$1:$AX$41)),ROW(G4))))","v":""},"■"]
[null,2,null,null,null,null,{"$f":"IF(COUNTIF(Step3!$AX$1:$AX$41,'印刷（マイタイムライン）'!$B$11)<ROW(D5),\"\",INDEX(Step3!BA$1:BA$41,SMALL(IF(Step3!$AX$1:$AX$41='印刷（マイタイムライン）'!$B$11,ROW(Step3!$AX$1:$AX$41)),ROW(D5))))","v":""},{"$f":"IF(COUNTIF(Step3!$AX$1:$AX$41,'印刷（マイタイムライン）'!$B$11)<ROW(F5),\"\",INDEX(Step3!BC$1:BC$41,SMALL(IF(Step3!$AX$1:$AX$41='印刷（マイタイムライン）'!$B$11,ROW(Step3!$AX$1:$AX$41)),ROW(F5))))","v":""},{"$f":"IF(COUNTIF(Step3!$AX$1:$AX$41,'印刷（マイタイムライン）'!$B$11)<ROW(G5),\"\",INDEX(Step3!BD$1:BD$41,SMALL(IF(Step3!$AX$1:$AX$41='印刷（マイタイムライン）'!$B$11,ROW(Step3!$AX$1:$AX$41)),ROW(G5))))","v":""},"■"]
[null,2,null,null,null,null,{"$f":"IF(COUNTIF(Step3!$AX$1:$AX$41,'印刷（マイタイムライン）'!$B$11)<ROW(D6),\"\",INDEX(Step3!BA$1:BA$41,SMALL(IF(Step3!$AX$1:$AX$41='印刷（マイタイムライン）'!$B$11,ROW(Step3!$AX$1:$AX$41)),ROW(D6))))","v":""},{"$f":"IF(COUNTIF(Step3!$AX$1:$AX$41,'印刷（マイタイムライン）'!$B$11)<ROW(F6),\"\",INDEX(Step3!BC$1:BC$41,SMALL(IF(Step3!$AX$1:$AX$41='印刷（マイタイムライン）'!$B$11,ROW(Step3!$AX$1:$AX$41)),ROW(F6))))","v":""},{"$f":"IF(COUNTIF(Step3!$AX$1:$AX$41,'印刷（マイタイムライン）'!$B$11)<ROW(G6),\"\",INDEX(Step3!BD$1:BD$41,SMALL(IF(Step3!$AX$1:$AX$41='印刷（マイタイムライン）'!$B$11,ROW(Step3!$AX$1:$AX$41)),ROW(G6))))","v":""},"■"]
[null,2,null,null,null,null,{"$f":"IF(COUNTIF(Step3!$AX$1:$AX$41,'印刷（マイタイムライン）'!$B$11)<ROW(D7),\"\",INDEX(Step3!BA$1:BA$41,SMALL(IF(Step3!$AX$1:$AX$41='印刷（マイタイムライン）'!$B$11,ROW(Step3!$AX$1:$AX$41)),ROW(D7))))","v":""},{"$f":"IF(COUNTIF(Step3!$AX$1:$AX$41,'印刷（マイタイムライン）'!$B$11)<ROW(F7),\"\",INDEX(Step3!BC$1:BC$41,SMALL(IF(Step3!$AX$1:$AX$41='印刷（マイタイムライン）'!$B$11,ROW(Step3!$AX$1:$AX$41)),ROW(F7))))","v":""},{"$f":"IF(COUNTIF(Step3!$AX$1:$AX$41,'印刷（マイタイムライン）'!$B$11)<ROW(G7),\"\",INDEX(Step3!BD$1:BD$41,SMALL(IF(Step3!$AX$1:$AX$41='印刷（マイタイムライン）'!$B$11,ROW(Step3!$AX$1:$AX$41)),ROW(G7))))","v":""},"■"]
[null,2,null,null,null,null,{"$f":"IF(COUNTIF(Step3!$AX$1:$AX$41,'印刷（マイタイムライン）'!$B$11)<ROW(D8),\"\",INDEX(Step3!BA$1:BA$41,SMALL(IF(Step3!$AX$1:$AX$41='印刷（マイタイムライン）'!$B$11,ROW(Step3!$AX$1:$AX$41)),ROW(D8))))","v":""},{"$f":"IF(COUNTIF(Step3!$AX$1:$AX$41,'印刷（マイタイムライン）'!$B$11)<ROW(F8),\"\",INDEX(Step3!BC$1:BC$41,SMALL(IF(Step3!$AX$1:$AX$41='印刷（マイタイムライン）'!$B$11,ROW(Step3!$AX$1:$AX$41)),ROW(F8))))","v":""},{"$f":"IF(COUNTIF(Step3!$AX$1:$AX$41,'印刷（マイタイムライン）'!$B$11)<ROW(G8),\"\",INDEX(Step3!BD$1:BD$41,SMALL(IF(Step3!$AX$1:$AX$41='印刷（マイタイムライン）'!$B$11,ROW(Step3!$AX$1:$AX$41)),ROW(G8))))","v":""},"■"]
[null,2,null,null,null,null,{"$f":"IF(COUNTIF(Step3!$AX$1:$AX$41,'印刷（マイタイムライン）'!$B$11)<ROW(D9),\"\",INDEX(Step3!BA$1:BA$41,SMALL(IF(Step3!$AX$1:$AX$41='印刷（マイタイムライン）'!$B$11,ROW(Step3!$AX$1:$AX$41)),ROW(D9))))","v":""},{"$f":"IF(COUNTIF(Step3!$AX$1:$AX$41,'印刷（マイタイムライン）'!$B$11)<ROW(F9),\"\",INDEX(Step3!BC$1:BC$41,SMALL(IF(Step3!$AX$1:$AX$41='印刷（マイタイムライン）'!$B$11,ROW(Step3!$AX$1:$AX$41)),ROW(F9))))","v":""},{"$f":"IF(COUNTIF(Step3!$AX$1:$AX$41,'印刷（マイタイムライン）'!$B$11)<ROW(G9),\"\",INDEX(Step3!BD$1:BD$41,SMALL(IF(Step3!$AX$1:$AX$41='印刷（マイタイムライン）'!$B$11,ROW(Step3!$AX$1:$AX$41)),ROW(G9))))","v":""},"■"]
[null,2,"夕方まで",null,null,null,{"$f":"IF(COUNTIF(Step3!$AX$1:$AX$41,'印刷（マイタイムライン）'!$B$11)<ROW(D10),\"\",INDEX(Step3!BA$1:BA$41,SMALL(IF(Step3!$AX$1:$AX$41='印刷（マイタイムライン）'!$B$11,ROW(Step3!$AX$1:$AX$41)),ROW(D10))))","v":""},{"$f":"IF(COUNTIF(Step3!$AX$1:$AX$41,'印刷（マイタイムライン）'!$B$11)<ROW(F10),\"\",INDEX(Step3!BC$1:BC$41,SMALL(IF(Step3!$AX$1:$AX$41='印刷（マイタイムライン）'!$B$11,ROW(Step3!$AX$1:$AX$41)),ROW(F10))))","v":""},{"$f":"IF(COUNTIF(Step3!$AX$1:$AX$41,'印刷（マイタイムライン）'!$B$11)<ROW(G10),\"\",INDEX(Step3!BD$1:BD$41,SMALL(IF(Step3!$AX$1:$AX$41='印刷（マイタイムライン）'!$B$11,ROW(Step3!$AX$1:$AX$41)),ROW(G10))))","v":""},"■"]
[null,3,"1日前\n",null,null,null,{"$f":"IF(COUNTIF(Step3!$AX$1:$AX$41,'印刷（マイタイムライン）'!$B$21)<ROW(D1),\"\",INDEX(Step3!BA$1:BA$41,SMALL(IF(Step3!$AX$1:$AX$41='印刷（マイタイムライン）'!$B$21,ROW(Step3!$AX$1:$AX$41)),ROW(D1))))","v":""},{"$f":"IF(COUNTIF(Step3!$AX$1:$AX$41,'印刷（マイタイムライン）'!$B$21)<ROW(F1),\"\",INDEX(Step3!BC$1:BC$41,SMALL(IF(Step3!$AX$1:$AX$41='印刷（マイタイムライン）'!$B$21,ROW(Step3!$AX$1:$AX$41)),ROW(F1))))","v":""},{"$f":"IF(COUNTIF(Step3!$AX$1:$AX$41,'印刷（マイタイムライン）'!$B$21)<ROW(G1),\"\",INDEX(Step3!BD$1:BD$41,SMALL(IF(Step3!$AX$1:$AX$41='印刷（マイタイムライン）'!$B$21,ROW(Step3!$AX$1:$AX$41)),ROW(G1))))","v":""},"■"]
[null,3,null,null,null,null,{"$f":"IF(COUNTIF(Step3!$AX$1:$AX$41,'印刷（マイタイムライン）'!$B$21)<ROW(D2),\"\",INDEX(Step3!BA$1:BA$41,SMALL(IF(Step3!$AX$1:$AX$41='印刷（マイタイムライン）'!$B$21,ROW(Step3!$AX$1:$AX$41)),ROW(D2))))","v":""},{"$f":"IF(COUNTIF(Step3!$AX$1:$AX$41,'印刷（マイタイムライン）'!$B$21)<ROW(F2),\"\",INDEX(Step3!BC$1:BC$41,SMALL(IF(Step3!$AX$1:$AX$41='印刷（マイタイムライン）'!$B$21,ROW(Step3!$AX$1:$AX$41)),ROW(F2))))","v":""},{"$f":"IF(COUNTIF(Step3!$AX$1:$AX$41,'印刷（マイタイムライン）'!$B$21)<ROW(G2),\"\",INDEX(Step3!BD$1:BD$41,SMALL(IF(Step3!$AX$1:$AX$41='印刷（マイタイムライン）'!$B$21,ROW(Step3!$AX$1:$AX$41)),ROW(G2))))","v":""},"■"]
[null,3,null,null,null,null,{"$f":"IF(COUNTIF(Step3!$AX$1:$AX$41,'印刷（マイタイムライン）'!$B$21)<ROW(D3),\"\",INDEX(Step3!BA$1:BA$41,SMALL(IF(Step3!$AX$1:$AX$41='印刷（マイタイムライン）'!$B$21,ROW(Step3!$AX$1:$AX$41)),ROW(D3))))","v":""},{"$f":"IF(COUNTIF(Step3!$AX$1:$AX$41,'印刷（マイタイムライン）'!$B$21)<ROW(F3),\"\",INDEX(Step3!BC$1:BC$41,SMALL(IF(Step3!$AX$1:$AX$41='印刷（マイタイムライン）'!$B$21,ROW(Step3!$AX$1:$AX$41)),ROW(F3))))","v":""},{"$f":"IF(COUNTIF(Step3!$AX$1:$AX$41,'印刷（マイタイムライン）'!$B$21)<ROW(G3),\"\",INDEX(Step3!BD$1:BD$41,SMALL(IF(Step3!$AX$1:$AX$41='印刷（マイタイムライン）'!$B$21,ROW(Step3!$AX$1:$AX$41)),ROW(G3))))","v":""},"■"]
[null,3,null,null,null,null,{"$f":"IF(COUNTIF(Step3!$AX$1:$AX$41,'印刷（マイタイムライン）'!$B$21)<ROW(D4),\"\",INDEX(Step3!BA$1:BA$41,SMALL(IF(Step3!$AX$1:$AX$41='印刷（マイタイムライン）'!$B$21,ROW(Step3!$AX$1:$AX$41)),ROW(D4))))","v":""},{"$f":"IF(COUNTIF(Step3!$AX$1:$AX$41,'印刷（マイタイムライン）'!$B$21)<ROW(F4),\"\",INDEX(Step3!BC$1:BC$41,SMALL(IF(Step3!$AX$1:$AX$41='印刷（マイタイムライン）'!$B$21,ROW(Step3!$AX$1:$AX$41)),ROW(F4))))","v":""},{"$f":"IF(COUNTIF(Step3!$AX$1:$AX$41,'印刷（マイタイムライン）'!$B$21)<ROW(G4),\"\",INDEX(Step3!BD$1:BD$41,SMALL(IF(Step3!$AX$1:$AX$41='印刷（マイタイムライン）'!$B$21,ROW(Step3!$AX$1:$AX$41)),ROW(G4))))","v":""},"■"]
[null,3,null,null,null,null,{"$f":"IF(COUNTIF(Step3!$AX$1:$AX$41,'印刷（マイタイムライン）'!$B$21)<ROW(D5),\"\",INDEX(Step3!BA$1:BA$41,SMALL(IF(Step3!$AX$1:$AX$41='印刷（マイタイムライン）'!$B$21,ROW(Step3!$AX$1:$AX$41)),ROW(D5))))","v":""},{"$f":"IF(COUNTIF(Step3!$AX$1:$AX$41,'印刷（マイタイムライン）'!$B$21)<ROW(F5),\"\",INDEX(Step3!BC$1:BC$41,SMALL(IF(Step3!$AX$1:$AX$41='印刷（マイタイムライン）'!$B$21,ROW(Step3!$AX$1:$AX$41)),ROW(F5))))","v":""},{"$f":"IF(COUNTIF(Step3!$AX$1:$AX$41,'印刷（マイタイムライン）'!$B$21)<ROW(G5),\"\",INDEX(Step3!BD$1:BD$41,SMALL(IF(Step3!$AX$1:$AX$41='印刷（マイタイムライン）'!$B$21,ROW(Step3!$AX$1:$AX$41)),ROW(G5))))","v":""},"■"]
[null,3,null,null,null,null,{"$f":"IF(COUNTIF(Step3!$AX$1:$AX$41,'印刷（マイタイムライン）'!$B$21)<ROW(D6),\"\",INDEX(Step3!BA$1:BA$41,SMALL(IF(Step3!$AX$1:$AX$41='印刷（マイタイムライン）'!$B$21,ROW(Step3!$AX$1:$AX$41)),ROW(D6))))","v":""},{"$f":"IF(COUNTIF(Step3!$AX$1:$AX$41,'印刷（マイタイムライン）'!$B$21)<ROW(F6),\"\",INDEX(Step3!BC$1:BC$41,SMALL(IF(Step3!$AX$1:$AX$41='印刷（マイタイムライン）'!$B$21,ROW(Step3!$AX$1:$AX$41)),ROW(F6))))","v":""},{"$f":"IF(COUNTIF(Step3!$AX$1:$AX$41,'印刷（マイタイムライン）'!$B$21)<ROW(G6),\"\",INDEX(Step3!BD$1:BD$41,SMALL(IF(Step3!$AX$1:$AX$41='印刷（マイタイムライン）'!$B$21,ROW(Step3!$AX$1:$AX$41)),ROW(G6))))","v":""},"■"]
[null,3,null,null,null,null,{"$f":"IF(COUNTIF(Step3!$AX$1:$AX$41,'印刷（マイタイムライン）'!$B$21)<ROW(D7),\"\",INDEX(Step3!BA$1:BA$41,SMALL(IF(Step3!$AX$1:$AX$41='印刷（マイタイムライン）'!$B$21,ROW(Step3!$AX$1:$AX$41)),ROW(D7))))","v":""},{"$f":"IF(COUNTIF(Step3!$AX$1:$AX$41,'印刷（マイタイムライン）'!$B$21)<ROW(F7),\"\",INDEX(Step3!BC$1:BC$41,SMALL(IF(Step3!$AX$1:$AX$41='印刷（マイタイムライン）'!$B$21,ROW(Step3!$AX$1:$AX$41)),ROW(F7))))","v":""},{"$f":"IF(COUNTIF(Step3!$AX$1:$AX$41,'印刷（マイタイムライン）'!$B$21)<ROW(G7),\"\",INDEX(Step3!BD$1:BD$41,SMALL(IF(Step3!$AX$1:$AX$41='印刷（マイタイムライン）'!$B$21,ROW(Step3!$AX$1:$AX$41)),ROW(G7))))","v":""},"■"]
[null,3,null,null,null,null,{"$f":"IF(COUNTIF(Step3!$AX$1:$AX$41,'印刷（マイタイムライン）'!$B$21)<ROW(D8),\"\",INDEX(Step3!BA$1:BA$41,SMALL(IF(Step3!$AX$1:$AX$41='印刷（マイタイムライン）'!$B$21,ROW(Step3!$AX$1:$AX$41)),ROW(D8))))","v":""},{"$f":"IF(COUNTIF(Step3!$AX$1:$AX$41,'印刷（マイタイムライン）'!$B$21)<ROW(F8),\"\",INDEX(Step3!BC$1:BC$41,SMALL(IF(Step3!$AX$1:$AX$41='印刷（マイタイムライン）'!$B$21,ROW(Step3!$AX$1:$AX$41)),ROW(F8))))","v":""},{"$f":"IF(COUNTIF(Step3!$AX$1:$AX$41,'印刷（マイタイムライン）'!$B$21)<ROW(G8),\"\",INDEX(Step3!BD$1:BD$41,SMALL(IF(Step3!$AX$1:$AX$41='印刷（マイタイムライン）'!$B$21,ROW(Step3!$AX$1:$AX$41)),ROW(G8))))","v":""},"■"]
[null,3,null,null,null,null,{"$f":"IF(COUNTIF(Step3!$AX$1:$AX$41,'印刷（マイタイムライン）'!$B$21)<ROW(D9),\"\",INDEX(Step3!BA$1:BA$41,SMALL(IF(Step3!$AX$1:$AX$41='印刷（マイタイムライン）'!$B$21,ROW(Step3!$AX$1:$AX$41)),ROW(D9))))","v":""},{"$f":"IF(COUNTIF(Step3!$AX$1:$AX$41,'印刷（マイタイムライン）'!$B$21)<ROW(F9),\"\",INDEX(Step3!BC$1:BC$41,SMALL(IF(Step3!$AX$1:$AX$41='印刷（マイタイムライン）'!$B$21,ROW(Step3!$AX$1:$AX$41)),ROW(F9))))","v":""},{"$f":"IF(COUNTIF(Step3!$AX$1:$AX$41,'印刷（マイタイムライン）'!$B$21)<ROW(G9),\"\",INDEX(Step3!BD$1:BD$41,SMALL(IF(Step3!$AX$1:$AX$41='印刷（マイタイムライン）'!$B$21,ROW(Step3!$AX$1:$AX$41)),ROW(G9))))","v":""},"■"]
[null,3,null,null,null,null,{"$f":"IF(COUNTIF(Step3!$AX$1:$AX$41,'印刷（マイタイムライン）'!$B$21)<ROW(D10),\"\",INDEX(Step3!BA$1:BA$41,SMALL(IF(Step3!$AX$1:$AX$41='印刷（マイタイムライン）'!$B$21,ROW(Step3!$AX$1:$AX$41)),ROW(D10))))","v":""},{"$f":"IF(COUNTIF(Step3!$AX$1:$AX$41,'印刷（マイタイムライン）'!$B$21)<ROW(F10),\"\",INDEX(Step3!BC$1:BC$41,SMALL(IF(Step3!$AX$1:$AX$41='印刷（マイタイムライン）'!$B$21,ROW(Step3!$AX$1:$AX$41)),ROW(F10))))","v":""},{"$f":"IF(COUNTIF(Step3!$AX$1:$AX$41,'印刷（マイタイムライン）'!$B$21)<ROW(G10),\"\",INDEX(Step3!BD$1:BD$41,SMALL(IF(Step3!$AX$1:$AX$41='印刷（マイタイムライン）'!$B$21,ROW(Step3!$AX$1:$AX$41)),ROW(G10))))","v":""},"■"]
[null,3,null,null,null,null,{"$f":"IF(COUNTIF(Step3!$AX$1:$AX$41,'印刷（マイタイムライン）'!$B$21)<ROW(D11),\"\",INDEX(Step3!BA$1:BA$41,SMALL(IF(Step3!$AX$1:$AX$41='印刷（マイタイムライン）'!$B$21,ROW(Step3!$AX$1:$AX$41)),ROW(D11))))","v":""},{"$f":"IF(COUNTIF(Step3!$AX$1:$AX$41,'印刷（マイタイムライン）'!$B$21)<ROW(F11),\"\",INDEX(Step3!BC$1:BC$41,SMALL(IF(Step3!$AX$1:$AX$41='印刷（マイタイムライン）'!$B$21,ROW(Step3!$AX$1:$AX$41)),ROW(F11))))","v":""},{"$f":"IF(COUNTIF(Step3!$AX$1:$AX$41,'印刷（マイタイムライン）'!$B$21)<ROW(G11),\"\",INDEX(Step3!BD$1:BD$41,SMALL(IF(Step3!$AX$1:$AX$41='印刷（マイタイムライン）'!$B$21,ROW(Step3!$AX$1:$AX$41)),ROW(G11))))","v":""},"■"]
[null,3,null,null,null,null,{"$f":"IF(COUNTIF(Step3!$AX$1:$AX$41,'印刷（マイタイムライン）'!$B$21)<ROW(D12),\"\",INDEX(Step3!BA$1:BA$41,SMALL(IF(Step3!$AX$1:$AX$41='印刷（マイタイムライン）'!$B$21,ROW(Step3!$AX$1:$AX$41)),ROW(D12))))","v":""},{"$f":"IF(COUNTIF(Step3!$AX$1:$AX$41,'印刷（マイタイムライン）'!$B$21)<ROW(F12),\"\",INDEX(Step3!BC$1:BC$41,SMALL(IF(Step3!$AX$1:$AX$41='印刷（マイタイムライン）'!$B$21,ROW(Step3!$AX$1:$AX$41)),ROW(F12))))","v":""},{"$f":"IF(COUNTIF(Step3!$AX$1:$AX$41,'印刷（マイタイムライン）'!$B$21)<ROW(G12),\"\",INDEX(Step3!BD$1:BD$41,SMALL(IF(Step3!$AX$1:$AX$41='印刷（マイタイムライン）'!$B$21,ROW(Step3!$AX$1:$AX$41)),ROW(G12))))","v":""},"■"]
[null,3,"夕方まで",null,null,null,{"$f":"IF(COUNTIF(Step3!$AX$1:$AX$41,'印刷（マイタイムライン）'!$B$21)<ROW(D13),\"\",INDEX(Step3!BA$1:BA$41,SMALL(IF(Step3!$AX$1:$AX$41='印刷（マイタイムライン）'!$B$21,ROW(Step3!$AX$1:$AX$41)),ROW(D13))))","v":""},{"$f":"IF(COUNTIF(Step3!$AX$1:$AX$41,'印刷（マイタイムライン）'!$B$21)<ROW(F13),\"\",INDEX(Step3!BC$1:BC$41,SMALL(IF(Step3!$AX$1:$AX$41='印刷（マイタイムライン）'!$B$21,ROW(Step3!$AX$1:$AX$41)),ROW(F13))))","v":""},{"$f":"IF(COUNTIF(Step3!$AX$1:$AX$41,'印刷（マイタイムライン）'!$B$21)<ROW(G13),\"\",INDEX(Step3!BD$1:BD$41,SMALL(IF(Step3!$AX$1:$AX$41='印刷（マイタイムライン）'!$B$21,ROW(Step3!$AX$1:$AX$41)),ROW(G13))))","v":""},"■"]
[null,4,{"$f":"IFERROR(VLOOKUP($B34,Step3!$AK:$AL,2,FALSE),\"\")","v":"当　日"},null,null,null,{"$f":"IF(COUNTIF(Step3!$AX$1:$AX$41,'印刷（マイタイムライン）'!$B$34)<ROW(D1),\"\",INDEX(Step3!BA$1:BA$41,SMALL(IF(Step3!$AX$1:$AX$41='印刷（マイタイムライン）'!$B$34,ROW(Step3!$AX$1:$AX$41)),ROW(D1))))","v":""},{"$f":"IF(COUNTIF(Step3!$AX$1:$AX$41,'印刷（マイタイムライン）'!$B$34)<ROW(F1),\"\",INDEX(Step3!BC$1:BC$41,SMALL(IF(Step3!$AX$1:$AX$41='印刷（マイタイムライン）'!$B$34,ROW(Step3!$AX$1:$AX$41)),ROW(F1))))","v":""},{"$f":"IF(COUNTIF(Step3!$AX$1:$AX$41,'印刷（マイタイムライン）'!$B$34)<ROW(G1),\"\",INDEX(Step3!BD$1:BD$41,SMALL(IF(Step3!$AX$1:$AX$41='印刷（マイタイムライン）'!$B$34,ROW(Step3!$AX$1:$AX$41)),ROW(G1))))","v":""},"■"]
[null,4,null,null,null,null,{"$f":"IF(COUNTIF(Step3!$AX$1:$AX$41,'印刷（マイタイムライン）'!$B$34)<ROW(D2),\"\",INDEX(Step3!BA$1:BA$41,SMALL(IF(Step3!$AX$1:$AX$41='印刷（マイタイムライン）'!$B$34,ROW(Step3!$AX$1:$AX$41)),ROW(D2))))","v":""},{"$f":"IF(COUNTIF(Step3!$AX$1:$AX$41,'印刷（マイタイムライン）'!$B$34)<ROW(F2),\"\",INDEX(Step3!BC$1:BC$41,SMALL(IF(Step3!$AX$1:$AX$41='印刷（マイタイムライン）'!$B$34,ROW(Step3!$AX$1:$AX$41)),ROW(F2))))","v":""},{"$f":"IF(COUNTIF(Step3!$AX$1:$AX$41,'印刷（マイタイムライン）'!$B$34)<ROW(G2),\"\",INDEX(Step3!BD$1:BD$41,SMALL(IF(Step3!$AX$1:$AX$41='印刷（マイタイムライン）'!$B$34,ROW(Step3!$AX$1:$AX$41)),ROW(G2))))","v":""},"■"]
[null,4,null,null,null,null,{"$f":"IF(COUNTIF(Step3!$AX$1:$AX$41,'印刷（マイタイムライン）'!$B$34)<ROW(D3),\"\",INDEX(Step3!BA$1:BA$41,SMALL(IF(Step3!$AX$1:$AX$41='印刷（マイタイムライン）'!$B$34,ROW(Step3!$AX$1:$AX$41)),ROW(D3))))","v":""},{"$f":"IF(COUNTIF(Step3!$AX$1:$AX$41,'印刷（マイタイムライン）'!$B$34)<ROW(F3),\"\",INDEX(Step3!BC$1:BC$41,SMALL(IF(Step3!$AX$1:$AX$41='印刷（マイタイムライン）'!$B$34,ROW(Step3!$AX$1:$AX$41)),ROW(F3))))","v":""},{"$f":"IF(COUNTIF(Step3!$AX$1:$AX$41,'印刷（マイタイムライン）'!$B$34)<ROW(G3),\"\",INDEX(Step3!BD$1:BD$41,SMALL(IF(Step3!$AX$1:$AX$41='印刷（マイタイムライン）'!$B$34,ROW(Step3!$AX$1:$AX$41)),ROW(G3))))","v":""},"■"]
[null,4,null,null,null,null,{"$f":"IF(COUNTIF(Step3!$AX$1:$AX$41,'印刷（マイタイムライン）'!$B$34)<ROW(D4),\"\",INDEX(Step3!BA$1:BA$41,SMALL(IF(Step3!$AX$1:$AX$41='印刷（マイタイムライン）'!$B$34,ROW(Step3!$AX$1:$AX$41)),ROW(D4))))","v":""},{"$f":"IF(COUNTIF(Step3!$AX$1:$AX$41,'印刷（マイタイムライン）'!$B$34)<ROW(F4),\"\",INDEX(Step3!BC$1:BC$41,SMALL(IF(Step3!$AX$1:$AX$41='印刷（マイタイムライン）'!$B$34,ROW(Step3!$AX$1:$AX$41)),ROW(F4))))","v":""},{"$f":"IF(COUNTIF(Step3!$AX$1:$AX$41,'印刷（マイタイムライン）'!$B$34)<ROW(G4),\"\",INDEX(Step3!BD$1:BD$41,SMALL(IF(Step3!$AX$1:$AX$41='印刷（マイタイムライン）'!$B$34,ROW(Step3!$AX$1:$AX$41)),ROW(G4))))","v":""},"■"]
[null,4,null,null,null,null,{"$f":"IF(COUNTIF(Step3!$AX$1:$AX$41,'印刷（マイタイムライン）'!$B$34)<ROW(D5),\"\",INDEX(Step3!BA$1:BA$41,SMALL(IF(Step3!$AX$1:$AX$41='印刷（マイタイムライン）'!$B$34,ROW(Step3!$AX$1:$AX$41)),ROW(D5))))","v":""},{"$f":"IF(COUNTIF(Step3!$AX$1:$AX$41,'印刷（マイタイムライン）'!$B$34)<ROW(F5),\"\",INDEX(Step3!BC$1:BC$41,SMALL(IF(Step3!$AX$1:$AX$41='印刷（マイタイムライン）'!$B$34,ROW(Step3!$AX$1:$AX$41)),ROW(F5))))","v":""},{"$f":"IF(COUNTIF(Step3!$AX$1:$AX$41,'印刷（マイタイムライン）'!$B$34)<ROW(G5),\"\",INDEX(Step3!BD$1:BD$41,SMALL(IF(Step3!$AX$1:$AX$41='印刷（マイタイムライン）'!$B$34,ROW(Step3!$AX$1:$AX$41)),ROW(G5))))","v":""},"■"]
[null,4,null,null,null,null,{"$f":"IF(COUNTIF(Step3!$AX$1:$AX$41,'印刷（マイタイムライン）'!$B$34)<ROW(D6),\"\",INDEX(Step3!BA$1:BA$41,SMALL(IF(Step3!$AX$1:$AX$41='印刷（マイタイムライン）'!$B$34,ROW(Step3!$AX$1:$AX$41)),ROW(D6))))","v":""},{"$f":"IF(COUNTIF(Step3!$AX$1:$AX$41,'印刷（マイタイムライン）'!$B$34)<ROW(F6),\"\",INDEX(Step3!BC$1:BC$41,SMALL(IF(Step3!$AX$1:$AX$41='印刷（マイタイムライン）'!$B$34,ROW(Step3!$AX$1:$AX$41)),ROW(F6))))","v":""},{"$f":"IF(COUNTIF(Step3!$AX$1:$AX$41,'印刷（マイタイムライン）'!$B$34)<ROW(G6),\"\",INDEX(Step3!BD$1:BD$41,SMALL(IF(Step3!$AX$1:$AX$41='印刷（マイタイムライン）'!$B$34,ROW(Step3!$AX$1:$AX$41)),ROW(G6))))","v":""},"■"]
[null,4,null,null,null,null,{"$f":"IF(COUNTIF(Step3!$AX$1:$AX$41,'印刷（マイタイムライン）'!$B$34)<ROW(D7),\"\",INDEX(Step3!BA$1:BA$41,SMALL(IF(Step3!$AX$1:$AX$41='印刷（マイタイムライン）'!$B$34,ROW(Step3!$AX$1:$AX$41)),ROW(D7))))","v":""},{"$f":"IF(COUNTIF(Step3!$AX$1:$AX$41,'印刷（マイタイムライン）'!$B$34)<ROW(F7),\"\",INDEX(Step3!BC$1:BC$41,SMALL(IF(Step3!$AX$1:$AX$41='印刷（マイタイムライン）'!$B$34,ROW(Step3!$AX$1:$AX$41)),ROW(F7))))","v":""},{"$f":"IF(COUNTIF(Step3!$AX$1:$AX$41,'印刷（マイタイムライン）'!$B$34)<ROW(G7),\"\",INDEX(Step3!BD$1:BD$41,SMALL(IF(Step3!$AX$1:$AX$41='印刷（マイタイムライン）'!$B$34,ROW(Step3!$AX$1:$AX$41)),ROW(G7))))","v":""},"■"]
[null,4,null,null,null,null,{"$f":"IF(COUNTIF(Step3!$AX$1:$AX$41,'印刷（マイタイムライン）'!$B$34)<ROW(D8),\"\",INDEX(Step3!BA$1:BA$41,SMALL(IF(Step3!$AX$1:$AX$41='印刷（マイタイムライン）'!$B$34,ROW(Step3!$AX$1:$AX$41)),ROW(D8))))","v":""},{"$f":"IF(COUNTIF(Step3!$AX$1:$AX$41,'印刷（マイタイムライン）'!$B$34)<ROW(F8),\"\",INDEX(Step3!BC$1:BC$41,SMALL(IF(Step3!$AX$1:$AX$41='印刷（マイタイムライン）'!$B$34,ROW(Step3!$AX$1:$AX$41)),ROW(F8))))","v":""},{"$f":"IF(COUNTIF(Step3!$AX$1:$AX$41,'印刷（マイタイムライン）'!$B$34)<ROW(G8),\"\",INDEX(Step3!BD$1:BD$41,SMALL(IF(Step3!$AX$1:$AX$41='印刷（マイタイムライン）'!$B$34,ROW(Step3!$AX$1:$AX$41)),ROW(G8))))","v":""},"■"]